Cogmind - Beta 11.1 @@@ ROGUE MODE // 2022.05.29 @ 17:19:23 // Winter2019/RPGLIKE Player: ktur Result: Destroyed by Architect with Modified Sigix Sheargun Performance ------------- Evolutions (9) 4500 Regions Visited (37) 7400 Robots Destroyed (1494) 7470 Value Destroyed (83826) 83826 Prototype IDs (284) 5680 Alien Tech Used (9) 1800 Bonus (88470) 88470 TOTAL SCORE: 199146 Bonus ------- Triggered High Security 3000 High Alert Combat Kills 52504 Follower Combat Kills 1661 Network Hubs Disabled 800 Met Imprinter 300 Destroyed Z-Imprinter 1000 Triggered Deep Caves Wall 500 Exposed GOLEM Chamber 500 Met Zhirov 300 Met Warlord at Base 500 MAIN.C Attacked Warlord 500 Warlord Defense Kills 1508 Built Enhanced Grunts 300 A7 Reached Mainframe 300 Met R17 at Cetus 500 Used Core Reset Matrix 3000 Met R17 at Research 2000 Destroyed MAIN.C Guards 500 Met MAIN.C 5000 Destroyed MAIN.C Shell 5000 Destroyed MAIN.C 10000 Met Architect 300 Destroyed A8 300 Destroyed A6 400 Destroyed A5 500 Destroyed A2 1000 Friendly Fire -3703 Cogmind --------- Core Integrity 0/1600 Matter 266/1150 Energy 624/750 System Corruption 0% Temperature Cool (4) Movement Treading (240) Ox1 Location -1/Access_0 Parts ------- > --- POWER (2) -------- Vortex Chain Reactor > --- PROPULSION (2) --- Centrium Heavy Treads > --- UTILITY (11) ----- Desublimator Experimental Targeting Computer Experimental Targeting Computer Experimental Core Analyzer Experimental Core Analyzer Experimental Armor Integrity Analyzer Precision Matter Filter Experimental Phase Shifter Graphene Brace AEGIS Remote Shield Long-range Tractor Beam > --- WEAPON (11) ------ Enhanced Autogun Enhanced Autogun Enhanced Autogun Enhanced Autogun Enhanced Autogun Enhanced Autogun Enhanced Autogun Enhanced Autogun Enhanced Autogun Enhanced Autogun Multirail > --- INVENTORY (5) ---- Desublimator Experimental Matter Compressor (0) Experimental Matter Compressor (0) Cooled Nova Cannon Sigix Corpse Peak State ------------ > --- POWER ------------ Vortex Chain Reactor > --- PROPULSION ------- Centrium Heavy Treads > --- UTILITY ---------- Desublimator Desublimator Experimental Targeting Computer Experimental Targeting Computer Experimental Core Analyzer Experimental Core Analyzer Experimental Armor Integrity Analyzer Precision Matter Filter Experimental Phase Shifter Graphene Brace AEGIS Remote Shield > --- WEAPON ----------- Enhanced Autogun Enhanced Autogun Enhanced Autogun Enhanced Autogun Enhanced Autogun Enhanced Autogun Enhanced Autogun Enhanced Autogun Enhanced Autogun Enhanced Autogun Multirail > --- INVENTORY -------- Experimental Matter Compressor Experimental Matter Compressor Long-range Tractor Beam Cooled Nova Cannon Sigix Corpse [Rating: 197] Favorites ----------- Power Vortex Chain Reactor Engine F-cell Engine Power Core Micro Nuclear Core Reactor Vortex Chain Reactor Propulsion Centrium Heavy Treads Treads Centrium Heavy Treads Utility Long-range Tractor Beam Device Long-range Tractor Beam Storage Advanced Matter Compressor Processor Experimental Core Analyzer Protection Makeshift Ablative Armor Weapon Enhanced Autogun Energy Gun Beam Rifle Energy Cannon Light EM Pulse Cannon Ballistic Gun Enhanced Autogun Ballistic Cannon Linear Accelerator Launcher Rocket Launcher Impact Weapon Powered Hammer Slashing Weapon Katana Special Melee Weapon Improved Datajack Build | -11 -10 -9 -9 -8 -8 -7 -7 -7 -7 -7 -7 -7 -6 -6 -6 -6 -6 -6 -6 -6 -5 -5 -5 -5 -4 -4 -4 -4 -4 -3 -3 -3 -3 -2 -1 -1 -1 ------- Run | Scr Mat Mat Min Mat Sto Fac Was Fac Low Low Zio Dee Pro Fac Was Fac Ext Cet Arc Hub Fac Upp Upp War Pro Fac Upp Upp Zhi Pro Res Qua Sec Res Acc Com Ac0 Slots Evolved 20 | 2 . 3 . 2 . 2 . 2 . . . . . 1 . 1 . . . . 1 . . 2 . 1 . . . . . 1 . 1 1 . . Power 1 | . . . . . . . . . . . . . . . . . . . . . . . . 1 . . . . . . . . . . . . . Propulsion 1 | 1 . . . . . . . . . . . . . . . . . . . . . . . . . . . . . . . . . . . . . Utility 8 | 1 . . . . . 1 . 2 . . . . . 1 . . . . . . 1 . . . . . . . . . . 1 . 1 . . . Weapon 10 | . . 3 . 2 . 1 . . . . . . . . . 1 . . . . . . . 1 . 1 . . . . . . . . 1 . . Parts Attached 356 | 5 4 18 . 10 10 37 4 12 2 1 4 27 . 12 . 3 2 4 . 19 15 . . 17 1 16 2 2 5 1 1 41 26 6 7 33 9 Power 11 | 1 . 2 . . 1 2 . . . . . 2 . . . . . . . . 2 . . 1 . . . . . . . . . . . . . Engine 7 | 1 . 2 . . 1 1 . . . . . 1 . . . . . . . . 1 . . . . . . . . . . . . . . . . Core 2 | . . . . . . 1 . . . . . . . . . . . . . . 1 . . . . . . . . . . . . . . . . Reactor 2 | . . . . . . . . . . . . 1 . . . . . . . . . . . 1 . . . . . . . . . . . . . Propulsion 17 | 2 1 7 . . 1 2 2 . . . . . . . . . . 2 . . . . . . . . . . . . . . . . . . . Treads 17 | 2 1 7 . . 1 2 2 . . . . . . . . . . 2 . . . . . . . . . . . . . . . . . . . Leg . | . . . . . . . . . . . . . . . . . . . . . . . . . . . . . . . . . . . . . . Wheel . | . . . . . . . . . . . . . . . . . . . . . . . . . . . . . . . . . . . . . . Hover . | . . . . . . . . . . . . . . . . . . . . . . . . . . . . . . . . . . . . . . Flight . | . . . . . . . . . . . . . . . . . . . . . . . . . . . . . . . . . . . . . . Utility 171 | . 1 4 . 5 . 12 2 6 2 1 . 25 . 6 . . . . . 12 7 . . 11 1 7 2 2 4 1 . 26 14 6 . 11 3 Device 136 | . 1 3 . 3 . 10 2 6 2 . . 22 . 3 . . . . . 11 7 . . 8 1 6 1 2 3 1 . 22 8 1 . 10 3 Storage 4 | . . . . . . . . . . . . 1 . . . . . . . . . . . . . . . . 1 . . 1 . . . 1 . Processor 26 | . . . . 2 . 2 . . . 1 . . . 3 . . . . . 1 . . . 2 . 1 . . . . . 3 6 5 . . . Hackware . | . . . . . . . . . . . . . . . . . . . . . . . . . . . . . . . . . . . . . . Protection 5 | . . 1 . . . . . . . . . 2 . . . . . . . . . . . 1 . . 1 . . . . . . . . . . Artifact . | . . . . . . . . . . . . . . . . . . . . . . . . . . . . . . . . . . . . . . Weapon 157 | 2 2 5 . 5 8 21 . 6 . . 4 . . 6 . 3 2 2 . 7 6 . . 5 . 9 . . 1 . 1 15 12 . 7 22 6 Energy Gun 4 | 1 . 2 . . . . . . . . . . . . . . . . . . . . . 1 . . . . . . . . . . . . . Energy Cannon 9 | . 1 . . . . 1 . . . . . . . . . . . . . 1 . . . . . . . . . . . . . . . 3 3 Ballistic Gun 107 | 1 1 2 . 5 5 16 . 5 . . 2 . . 3 . 3 1 1 . 6 5 . . 2 . 9 . . . . 1 10 9 . 5 12 3 Ballistic Cannon 7 | . . . . . . . . . . . . . . . . . . . . . . . . . . . . . . . . . . . 1 6 . Launcher 4 | . . . . . 3 . . . . . . . . 1 . . . . . . . . . . . . . . . . . . . . . . . Special Weapon . | . . . . . . . . . . . . . . . . . . . . . . . . . . . . . . . . . . . . . . Impact Weapon 24 | . . . . . . 3 . 1 . . 2 . . 2 . . 1 1 . . 1 . . 2 . . . . 1 . . 5 3 . 1 1 . Slashing Weapon 1 | . . 1 . . . . . . . . . . . . . . . . . . . . . . . . . . . . . . . . . . . Piercing Weapon . | . . . . . . . . . . . . . . . . . . . . . . . . . . . . . . . . . . . . . . Special Melee Weapon 1 | . . . . . . 1 . . . . . . . . . . . . . . . . . . . . . . . . . . . . . . . Unidentified Prototypes 54 | . . 1 . . 1 7 . . . . . 7 . 1 . . . 1 . 4 2 . . 7 . 1 . 1 2 . . 9 3 . 1 5 1 Parts Lost 2 | . . . . . 1 . . . . . . . . . . . . . . . 1 . . . . . . . . . . . . . . . . Power 1 | . . . . . 1 . . . . . . . . . . . . . . . . . . . . . . . . . . . . . . . . Propulsion . | . . . . . . . . . . . . . . . . . . . . . . . . . . . . . . . . . . . . . . Utility 1 | . . . . . . . . . . . . . . . . . . . . . 1 . . . . . . . . . . . . . . . . Weapon . | . . . . . . . . . . . . . . . . . . . . . . . . . . . . . . . . . . . . . . Highest Loss Streak 1 | . . . . . 1 . . . . . . . . . . . . . . . 1 . . . . . . . . . . . . . . . . To Critical Strikes . | . . . . . . . . . . . . . . . . . . . . . . . . . . . . . . . . . . . . . . Average Slot Usage (%) 92 | . 81 96 100 97 99 99 92 92 93 93 93 92 93 92 93 93 94 93 94 93 93 88 88 90 89 89 90 90 89 90 90 89 86 91 91 91 92 Engine 3 | . 16 12 11 9 8 4 7 6 6 6 6 5 6 6 6 5 5 5 5 5 5 5 5 3 . . . . . . . . . . . . . Reactor 1 | . . . . . . . . . . . . . . . . . . . . . . . . 1 5 4 4 4 4 4 4 4 4 4 3 3 3 Treads 6 | . 33 25 22 18 18 17 7 6 6 6 6 6 6 6 6 5 5 4 5 5 5 5 5 5 5 4 4 4 4 4 4 4 4 4 3 3 3 Device 18 | . 14 24 22 17 9 8 7 16 20 20 20 19 20 18 18 17 17 17 17 16 24 27 27 25 19 19 18 19 18 19 19 20 20 16 15 15 21 Processor 15 | . . . . . 9 10 15 13 13 13 13 13 13 17 18 17 17 17 17 17 13 11 11 11 15 14 14 14 14 14 14 14 13 27 26 25 20 Ballistic Gun 43 | . 6 26 33 42 52 52 53 48 46 46 45 46 46 43 43 43 46 46 47 46 43 38 38 38 45 45 47 47 45 42 43 44 43 40 41 41 41 Naked Turns . | . . . . . . . . . . . . . . . . . . . . . . . . . . . . . . . . . . . . . . Heaviest Build 107 | 7 10 21 21 28 28 34 35 39 39 39 39 39 37 38 37 40 40 40 40 41 49 42 42 76 77 77 84 77 77 74 74 89 88 84 96 100 107 Greatest Support 95 | 40 40 46 44 44 44 44 70 70 70 70 70 70 70 70 70 70 70 80 80 80 80 80 80 80 80 80 80 80 80 80 80 85 95 95 95 95 95 Greatest Overweight (x) 13 | . . . . . . 1 . . . . . . . . . . . 13 . . . . . . . . 1 . . . . 1 1 . 1 1 1 Average Overweight (x) . | . . . . . . . . . . . . . . . . . . . . . . . . . . . . . . . . . . . . . 1 Largest Inventory Capacity 5 | . . 1 1 1 1 4 4 4 4 4 4 4 4 4 4 4 4 4 4 5 5 5 5 5 5 5 5 5 5 5 5 5 5 5 5 5 5 Average Capacity 4 | . . . 1 1 1 3 4 4 4 4 4 4 4 4 4 4 4 4 4 4 5 5 5 5 5 5 5 5 5 5 5 5 5 5 5 5 5 Most Carried 5 | . . 1 1 1 1 4 4 4 4 4 4 4 4 4 4 4 3 3 3 5 5 5 5 5 5 5 5 5 5 5 5 5 5 5 5 5 5 Average Carried 4 | . . . 1 1 1 3 4 3 4 4 4 3 4 3 3 3 3 3 3 4 4 4 5 4 5 5 5 5 4 5 4 4 4 5 4 4 4 Final Capacity 5 | . . 1 1 1 1 4 4 4 4 4 4 4 4 4 4 4 4 4 4 5 5 5 5 5 5 5 5 5 5 5 5 5 5 5 5 5 5 Final Carried 5 | . . 1 1 1 1 4 4 4 4 4 4 4 4 3 4 3 3 3 3 5 4 5 5 5 5 5 5 5 5 5 5 5 5 5 5 5 5 Class Distribution -------------------- 80% | Machinist-Executioner 11% | Hacker-Executioner Dominant Class ---------------- Hacker-Mutant | -10/Materials Hacker-Tank | -9/Materials Hacker-Tank | -9/Mines Hacker-Executioner | -8/Materials Hacker-Executioner | -8/Storage Hacker-Executioner | -7/Factory Hacker-Executioner | -7/Waste Machinist-Executioner | -7/Factory Machinist-Executioner | -7/Lower Caves Machinist-Executioner | -7/Lower Caves Machinist-Executioner | -7/Zion Machinist-Executioner | -7/Deep Caves Machinist-Executioner | -6/Proximity Caves Machinist-Executioner | -6/Factory Machinist-Executioner | -6/Waste Machinist-Executioner | -6/Factory Machinist-Executioner | -6/Extension Machinist-Executioner | -6/Cetus Machinist-Executioner | -6/Archives Machinist-Executioner | -6/Hub_04(d) Machinist-Executioner | -5/Factory Machinist-Executioner | -5/Upper Caves Machinist-Executioner | -5/Upper Caves Machinist-Executioner | -5/Warlord Machinist-Executioner | -4/Proximity Caves Machinist-Executioner | -4/Factory Machinist-Executioner | -4/Upper Caves Machinist-Executioner | -4/Upper Caves Machinist-Executioner | -4/Zhirov Machinist-Executioner | -3/Proximity Caves Machinist-Executioner | -3/Research Machinist-Executioner | -3/Quarantine Machinist-Executioner | -3/Section 7 Machinist-Executioner | -2/Research Machinist-Executioner | -1/Access Machinist-Executioner | -1/Command Machinist-Executioner | -1/Access_0 Resources | -11 -10 -9 -9 -8 -8 -7 -7 -7 -7 -7 -7 -7 -6 -6 -6 -6 -6 -6 -6 -6 -5 -5 -5 -5 -4 -4 -4 -4 -4 -3 -3 -3 -3 -2 -1 -1 -1 ----------- Run | Scr Mat Mat Min Mat Sto Fac Was Fac Low Low Zio Dee Pro Fac Was Fac Ext Cet Arc Hub Fac Upp Upp War Pro Fac Upp Upp Zhi Pro Res Qua Sec Res Acc Com Ac0 Matter Collected 51178 | 250 20 893 64 718 848 3122 731 3694 146 290 20 2852 462 996 311 1007 865 264 136 1753 3846 380 132 386 136 4833 202 412 . 174 150 1974 1971 490 5661 7677 3312 Remotely 42098 | . . . . . . 1980 381 3645 146 290 20 1512 462 996 311 988 865 264 136 1406 3830 380 132 386 136 4025 184 362 . 169 150 1472 1911 490 5523 7234 2312 Salvage Created 106661 | . 84 847 77 1097 1501 3612 1621 6354 185 942 . 6112 1223 2190 772 1562 3095 477 166 4114 8937 873 294 642 600 12812 441 1057 . . 152 3021 3796 1287 14444 19811 2463 Parts 5425 | . 8 84 2 63 82 206 24 424 8 59 . 154 80 158 60 112 189 35 23 264 382 56 18 38 23 658 26 61 . . 22 226 188 105 758 596 233 Haulers Intercepted 40 | . . 3 . 5 5 5 . 4 . . . . . 2 . . . . . 2 5 . . . . 5 . 1 . . . . . . 3 . . Recyclers Shooed 10 | . . . . 2 . 3 . . . . . . . . . 2 . . . . 1 . . . . 1 . . . . . . . . 1 . . Parts Field Recycled . | . . . . . . . . . . . . . . . . . . . . . . . . . . . . . . . . . . . . . . Retrieved Matter . | . . . . . . . . . . . . . . . . . . . . . . . . . . . . . . . . . . . . . . Parts Self-Destructed 350 | . . . . . . . . . 8 56 2 . 80 . . . . . . . . 58 18 . 23 . 25 69 . 11 . . . . . . . Prevented 1 | . . . . . . . . . . . . . . . . . . . . . . . . . . . 1 . . . . . . . . . . Kills | -11 -10 -9 -9 -8 -8 -7 -7 -7 -7 -7 -7 -7 -6 -6 -6 -6 -6 -6 -6 -6 -5 -5 -5 -5 -4 -4 -4 -4 -4 -3 -3 -3 -3 -2 -1 -1 -1 ------- Run | Scr Mat Mat Min Mat Sto Fac Was Fac Low Low Zio Dee Pro Fac Was Fac Ext Cet Arc Hub Fac Upp Upp War Pro Fac Upp Upp Zhi Pro Res Qua Sec Res Acc Com Ac0 Combat Hostiles Destroyed 1453 | . 3 30 2 23 25 74 6 144 8 18 . 93 28 33 6 25 32 5 2 52 152 14 3 10 5 149 4 15 . . 4 42 45 25 168 179 29 Melee 1 | . . . . . . . . . . . . . . . . . . . . . . . . . . 1 . . . . . . . . . . . Guns 1440 | . . 30 2 23 23 74 6 140 8 18 . 93 28 33 6 25 32 5 2 52 152 14 3 10 5 146 4 15 . . 4 41 45 25 168 179 29 Cannons 3 | . 3 . . . . . . . . . . . . . . . . . . . . . . . . . . . . . . . . . . . . AOE 8 | . . . . . 2 . . 4 . . . . . . . . . . . . . . . . . 2 . . . . . . . . . . . Classes Destroyed 36 | . 1 6 . 1 2 7 1 . . 1 . 4 . 2 . . 1 1 . 2 . 1 . 2 . . . . . . . 1 1 1 . 1 . Worker 49 | . . 2 . 1 3 4 . 8 . . . . . 3 . 2 . . . 1 13 . . . . 4 . . . . . . . . 6 2 . Builder 29 | . . . . . . 3 . 5 . . . . . 1 . 2 2 . . . 2 . . . . 10 . . . . . . . . 4 . . Tunneler 4 | . . . . . . . . . . . . . . . . . . . . 1 . . . . . 1 . . . . . . . . 2 . . Hauler 40 | . . 3 . 5 5 5 . 4 . . . . . 2 . . . . . 2 5 . . . . 5 . 1 . . . . . . 3 . . Recycler 24 | . . . . . . 4 . 3 . . . . . . . 3 . . . 1 4 . . . . 3 . . . . . . . . 3 3 . Carrier 33 | . . . . . . . . . . . . . . . . . . 1 . . . . . . . . . . . . . . 1 . 13 18 . Minesweeper 1 | . . . . . . . . . . . . . . . . . . . . . . 1 . . . . . . . . . . . . . . . Mechanic 30 | . . . . . 1 . . 2 . . . . . . . . . . . . 2 . . . . 2 . . . . . . . . 5 18 . Operator 12 | . . 2 . . 1 1 . 3 . . . . . . . . . . 1 1 . . . . . . . . . . 1 . 1 . . 1 . Watcher 25 | . . . . . 1 . . 4 . . . . . . . 2 2 1 . 1 . . . . . 2 . . . . . . 2 . 4 6 . Swarmer 144 | . . 7 . 3 1 8 . 10 8 6 . . 13 3 . 7 . . . . 9 5 . . . 13 . 3 . . 3 . 9 12 20 4 . Cutter 4 | . . . . . . . . . . . . . . . . . . . . 4 . . . . . . . . . . . . . . . . . Saboteur 30 | . . . . . . . . . . . . . . 1 . 1 . . . 1 7 . . . . 7 . . . . . . . . 6 7 . Grunt 463 | . 3 16 2 12 14 39 . 60 . 6 . . 11 19 . 11 13 . . 19 51 5 . 6 4 40 3 8 . . . 13 5 7 43 53 . Brawler 56 | . . . . 3 2 5 . 7 . . . . . . . 2 2 . . 2 12 . . . . 5 . . . . . 1 1 . 5 9 . Duelist 79 | . . 1 . . 1 2 . 11 . 2 . . 1 3 . . . . . 1 15 . . . . 12 . 2 . . . . 2 . 13 13 . Protector 54 | . . . . . . 1 . 11 . . . . . . . . . . . 3 12 . . . . 8 . . . . . . . . 9 10 . Researcher 5 | . . . . . . . . . . . . . . . . . . . . . . . . . . . . . . . . . 5 . . . . Sentry 96 | . . 6 . 5 7 5 . 5 . 3 . . 2 1 . 1 10 . 2 7 1 2 . . 1 5 . 2 . . 1 3 5 1 15 6 . Demolisher 2 | . . . . . . . . . . . . . . . . . 2 . . . . . . . . . . . . . . . . . . . . Specialist 13 | . . . . . . 1 . . . . . . . . . . . . . 2 . . . . . 3 . . . . . 3 2 . 2 . . Hunter 137 | . . . . . . 5 . 24 . . . . . 2 . 2 2 1 . 4 21 . 3 . . 31 . . . . . 3 6 . 13 20 . Programmer 141 | . . . . . . 7 . 16 . . . . 1 3 . 1 . . . 2 27 2 . 1 . 23 . . . . . 7 8 . 22 21 . Heavy 10 | . . . . . . 1 . . . . . . . . . . . . . 2 . . . . . 2 . . . . . . 2 . 2 1 . Behemoth 15 | . . . . . . . . . . . . . . 1 . . 2 . . . . . . . . 1 1 . . . . . 2 . 4 4 . Compactor 12 | . . . . . . . 6 . . . . . . . 6 . . . . . . . . . . . . . . . . . . . . . . Cetus Guard 4 | . . . . . . . . . . . . . . . . . . 4 . . . . . . . . . . . . . . . . . . . Quarantine Guard 11 | . . . . . . . . . . . . . . . . . . . . . . . . . . . . . . . . 11 . . . . . S7 Guard 1 | . . . . . . . . . . . . . . . . . . . . . . . . . . . . . . . . . 1 . . . . M Guard 2 | . . . . . . . . . . . . . . . . . . . . . . . . . . . . . . . . . . . . 2 . Enhanced Grunt 17 | . . . . . . . . . . . . . . . . . . . . . . . . . . . . . . . . . . . . . 17 Enhanced Sentry 2 | . . . . . . . . . . . . . . . . . . . . . . . . . . . . . . . . . . . . . 2 Enhanced Hunter 6 | . . . . . . . . . . . . . . . . . . . . . . . . . . . . . . . . . . . . . 6 Lightning 6 | . . . . . . . . . . . . . . . . . . . . 6 . . . . . . . . . . . . . . . . . Combat Programmer 2 | . . . . . . . . . . . . . . . . . . . . . . . . . . . . . . . . . . . . 2 . Investigator 3 | . . . . . . . . . . . . . . . . . . . . . . . . . . . . . . . . . . . 1 2 . Striker 29 | . . . . . . . . . . . . . . . . . . . . . . . . 2 . . . . . . . . . 4 11 12 . Executioner 19 | . . . . . . . . . . . . . . . . . . . . . . . . 1 . 1 . . . . . . 2 1 3 11 . Alpha 7 2 | . . . . . . . . . . . . . . . . . . . . . . . . . . . . . . . . . . . . 2 . Fortress 1 | . . . . . . . . . . . . . . . . . . . . . . . . . . . . . . . . 1 . . . . . Z-Light 10 | . . . . . . . . . . . . 10 . . . . . . . . . . . . . . . . . . . . . . . . . Samaritan 1 | . . . . . . . . . . . . . . . . . . . . . . . . . . . . . . . . . . 1 . . . Thief 1 | . . . . . . . . . . 1 . . . . . . . . . . . . . . . . . . . . . . . . . . . Assembler 2 | . . . . . . . . . . . . 2 . . . . . . . . . . . . . . . . . . . . . . . . . Assembled 44 | . . . . . . . . . . . . 44 . . . . . . . . . . . . . . . . . . . . . . . . . Golem 38 | . . . . . . . . . . . . 38 . . . . . . . . . . . . . . . . . . . . . . . . . Thug 2 | . . . . . . . . . . . . . . . . . 2 . . . . . . . . . . . . . . . . . . . . Savage 6 | . . . . . . . . . . . . . . . . . 5 . 1 . . . . . . . . . . . . . . . . . . Butcher 1 | . . . . . . . . . . . . 1 . . . . . . . . . . . . . . . . . . . . . . . . . Wizard 1 | . . . . . . . . . . . . 1 . . . . . . . . . . . . . . . . . . . . . . . . . Best Kill Streak 74 | . 2 5 2 5 9 8 4 27 4 10 . 74 10 6 4 8 6 4 3 8 24 7 2 7 4 28 2 6 . . 3 9 13 7 34 44 5 Combat Bots Only 72 | . 2 5 2 5 8 6 4 27 4 10 . 72 10 5 4 5 6 3 2 8 24 7 2 7 4 28 2 6 . . 3 9 12 7 25 35 5 Max Kills in Single Turn 8 | . 1 2 1 2 3 2 1 6 3 2 . 4 3 3 1 3 4 1 2 2 3 1 1 3 2 3 1 2 . . 2 3 3 4 8 6 3 Gunslinging 5 | . . 1 . 1 1 1 . 1 1 1 . 3 1 1 . . 1 . . 1 2 . . 1 1 1 . 1 . . 1 2 2 3 5 3 1 Exploded 2 | . . . . . 2 . . 2 . . . . . . . . . . . . . . . . . 2 . . . . . . . . . . . Melee 1 | . . . . . . . . . . . . . . . . . . . . . . . . . . 1 . . . . . . . . . . . Uniques/NPCs Destroyed 7 | . . . . . . . . . . . . 1 . . . . . . . . . . . . . . . . . . . . . . . 2 4 Z-Imprinter (-7/Deep Caves) MAIN.C Shell (-1/Command) MAIN.C (-1/Command) A8 (-1/Access_0) A6 (-1/Access_0) A5 (-1/Access_0) A2 (-1/Access_0) Combat | -11 -10 -9 -9 -8 -8 -7 -7 -7 -7 -7 -7 -7 -6 -6 -6 -6 -6 -6 -6 -6 -5 -5 -5 -5 -4 -4 -4 -4 -4 -3 -3 -3 -3 -2 -1 -1 -1 -------- Run | Scr Mat Mat Min Mat Sto Fac Was Fac Low Low Zio Dee Pro Fac Was Fac Ext Cet Arc Hub Fac Upp Upp War Pro Fac Upp Upp Zhi Pro Res Qua Sec Res Acc Com Ac0 Damage Taken 27367 | . 123 899 45 635 408 2563 . 2163 92 31 . 1052 326 696 . 357 322 190 57 1978 3152 244 98 108 59 3657 111 269 . 27 133 1124 559 152 848 1153 3736 Core 21819 | . 98 728 39 511 318 2076 . 1718 71 24 . 847 255 562 . 283 252 148 49 1583 2488 196 79 84 46 2876 88 214 . 21 109 927 430 117 663 904 3015 Absorbed by Shields 6459 | . . 57 18 237 . . . . . . . . . . . . 64 60 . . . . . . . . . . . . . . 579 161 883 995 3405 Reduced by Siege Mode 160 | . . . . . . . . 28 . 2 . 17 1 . . 1 . . . 15 16 4 . . . 65 . . . . . 2 4 . . 5 . Redirected to Core 18969 | . 81 555 21 409 254 1669 . 1483 71 24 . 697 231 496 . 251 222 148 30 1394 2257 182 67 84 46 2700 88 182 . 21 85 710 390 117 603 846 2555 Core Remaining (%) 97 | 100 100 . 100 . 100 . . . . . . . 100 . . . . . . 93 . . . . 97 . . . . 88 . . 100 100 . . . Volleys Fired 2612 | . 14 117 8 57 41 118 23 225 8 20 . 138 33 64 21 51 53 14 9 98 243 26 7 12 7 259 8 18 . 3 6 61 83 23 223 305 216 Largest 11 | . 1 3 4 6 6 7 7 7 7 7 . 7 7 7 7 8 8 8 8 8 8 7 7 9 9 10 10 9 . 9 9 10 10 10 11 11 11 Hottest 316 | . 56 88 122 142 138 171 171 175 175 175 . 175 175 175 175 200 200 200 200 200 200 175 175 251 251 263 263 225 . 225 225 250 250 250 295 316 295 Shots Fired 21089 | . 14 228 32 264 218 714 162 1557 56 140 . 966 231 448 147 366 424 112 68 744 1847 178 50 107 63 2276 78 159 . 27 54 610 828 230 2389 2966 2336 Gun 21020 | . . 228 32 264 213 714 162 1557 56 140 . 966 231 448 147 366 424 112 68 744 1847 178 50 107 63 2276 78 159 . 27 54 610 828 230 2386 2923 2332 Cannon 64 | . 14 . . . . . . . . . . . . . . . . . . . . . . . . . . . . . . . . . 3 43 4 Launcher 5 | . . . . . 5 . . . . . . . . . . . . . . . . . . . . . . . . . . . . . . . . Special . | . . . . . . . . . . . . . . . . . . . . . . . . . . . . . . . . . . . . . . Kinetic 21016 | . . 224 24 237 213 714 162 1557 56 140 . 966 231 448 147 366 424 112 68 744 1847 178 50 107 63 2276 78 159 . 27 54 610 828 230 2389 2955 2332 Thermal 54 | . . 4 8 27 . . . . . . . . . . . . . . . . . . . . . . . . . . . . . . . 11 4 Explosive 5 | . . . . . 5 . . . . . . . . . . . . . . . . . . . . . . . . . . . . . . . . Electromagnetic 14 | . 14 . . . . . . . . . . . . . . . . . . . . . . . . . . . . . . . . . . . . Robot Hit Streak 57 | . 6 13 6 21 18 19 43 34 4 26 . 56 38 17 34 26 22 8 14 16 40 18 6 17 10 19 30 14 . 13 7 36 27 19 35 57 33 Robot Miss Streak 13 | . 1 4 3 5 4 4 3 5 3 2 . 5 5 4 2 4 8 3 4 8 13 3 4 4 5 9 4 2 . 3 4 5 10 6 13 7 8 Penetration Max 2 | . . . . . . . . . . . . . . . . . . . . . . . . 1 . 2 . . . . . . . . 2 2 1 Secondary Targets 543 | . . 3 . 11 8 26 1 61 2 3 . 31 9 9 1 9 10 2 1 16 76 3 . 6 2 65 . 6 . . 1 10 10 10 66 78 7 Max Gunslinging Chain 4 | . . 1 . 1 1 1 1 2 1 1 . 4 2 2 1 1 1 1 1 1 2 1 . 1 1 2 . 2 . . 1 2 2 2 3 3 1 Shots Hit Robots 12461 | . 12 144 20 160 112 445 125 832 17 64 . 665 112 214 117 180 235 72 52 395 1067 104 24 68 36 1189 49 82 . 19 21 348 426 114 1427 1833 1681 Core Hits 6169 | . 4 64 5 63 71 194 29 392 8 32 . 489 56 97 25 75 113 27 15 191 512 34 12 20 15 561 17 46 . 4 13 174 194 66 743 963 845 Critical Kills 189 | . . 2 . 2 1 4 . 3 . 2 . 5 1 4 1 4 3 2 . 4 8 . . 1 . 6 . . . . . 9 7 9 52 59 . Critical Parts Destroyed 229 | . . . . . . 2 . 2 . . . 1 1 6 . 5 7 2 2 13 9 . . 2 . 6 . . . . . 11 5 6 56 86 7 Critical Strikes 454 | . . 2 . 7 1 6 . 5 . 2 . 6 2 11 4 9 13 4 4 18 17 . . 3 . 12 . . . . . 20 13 15 112 159 9 Burn 5 | . . . . 5 . . . . . . . . . . . . . . . . . . . . . . . . . . . . . . . . . Destroy 448 | . . 2 . 2 1 6 . 5 . 2 . 6 2 11 4 9 13 4 4 18 17 . . 3 . 12 . . . . . 20 13 15 112 158 9 Blast 1 | . . . . . . . . . . . . . . . . . . . . . . . . . . . . . . . . . . . . 1 . Melee Attacks 54 | . . . . . . 7 . 2 . . 5 . . 2 . . 2 4 . . 2 . . 1 . . . . . . 2 5 3 . 16 3 . Kinetic 26 | . . . . . . . . . . . . . . . . . . . . . . . . . . . . . . . . 4 3 . 16 3 . Impact 27 | . . . . . . 6 . 2 . . 5 . . 2 . . 2 4 . . 2 . . 1 . . . . . . 2 1 . . . . . Slashing . | . . . . . . . . . . . . . . . . . . . . . . . . . . . . . . . . . . . . . . Piercing . | . . . . . . . . . . . . . . . . . . . . . . . . . . . . . . . . . . . . . . Sneak Attacks 1 | . . . . . . 1 . . . . . . . . . . . . . . . . . . . . . . . . . . . . . . . Combat Hostiles . | . . . . . . . . . . . . . . . . . . . . . . . . . . . . . . . . . . . . . . Follow-up Attacks . | . . . . . . . . . . . . . . . . . . . . . . . . . . . . . . . . . . . . . . Damage Inflicted 246567 | . 278 2039 255 2264 2231 8691 2346 17858 363 1199 . 14477 2380 4672 2384 3849 5193 1571 1051 7795 22295 2065 334 1681 737 24255 1068 1722 . 399 430 7247 8478 2713 27689 35788 28770 Guns 242683 | . . 2017 255 2194 1809 8600 2346 16087 363 1199 . 14477 2380 4430 2384 3727 5172 1571 1051 7740 22292 2065 334 1681 737 23760 1068 1713 . 399 430 7213 8475 2713 27683 35548 28770 Cannons 399 | . 278 . . . . . . . . . . . . . . . . . . . . . . . . . . . . . . . . . . 121 . Explosions 2960 | . . . . . 398 . . 1771 . . . . . 241 . 79 . . . 51 . . . . . 420 . . . . . . . . . . . Melee . | . . . . . . . . . . . . . . . . . . . . . . . . . . . . . . . . . . . . . . Ramming 525 | . . 22 . 70 24 91 . . . . . . . 1 . 43 21 . . 4 3 . . . . 75 . 9 . . . 34 3 . 6 119 . Kinetic 242460 | . . 2004 184 1934 1809 8600 2346 16087 363 1199 . 14477 2380 4430 2384 3727 5172 1571 1051 7740 22292 2065 334 1681 737 23760 1068 1713 . 399 430 7213 8475 2713 27683 35669 28770 Thermal 1741 | . . 13 71 260 . . . 1005 . . . . . . . . . . . . . . . . . 392 . . . . . . . . . . . Explosive 1512 | . . . . . 398 . . 766 . . . . . 241 . 79 . . . . . . . . . 28 . . . . . . . . . . . Electromagnetic 329 | . 278 . . . . . . . . . . . . . . . . . . 51 . . . . . . . . . . . . . . . . . Impact . | . . . . . . . . . . . . . . . . . . . . . . . . . . . . . . . . . . . . . . Slashing . | . . . . . . . . . . . . . . . . . . . . . . . . . . . . . . . . . . . . . . Piercing . | . . . . . . . . . . . . . . . . . . . . . . . . . . . . . . . . . . . . . . Highest Corruption 13 | . . 2 2 1 1 3 3 3 3 . . . . 1 . . . . . 13 8 8 8 8 . 11 11 11 11 11 . 1 2 . . 1 . Average Corruption 4 | . . 2 2 1 1 2 3 2 2 . . . . 1 . . . . . 10 2 8 8 8 . 6 11 11 11 11 . 1 1 . . 1 . Corruption Purged 14 | . . . . . . 4 . 3 3 . . . . 1 . . . . . 2 . . . . . . . . . . . . . . . 1 . Corruption Blocked 54 | . . . . . . . . . . . . . . . . . . . . . . . . 8 . . . . . . . . . 46 . . . Effects 408 | . . 18 2 1 2 26 5 22 3 . . . . . . . . . . 41 51 25 10 . . 85 27 42 10 24 . 2 7 . . 5 . Message Errors 90 | . . 4 . . . 7 . 3 1 . . . . . . . . . . 7 8 10 2 . . 19 6 11 2 8 . . 1 . . 1 . Matter Fused 82 | . . 2 . 1 . 6 3 8 . . . . . . . . . . . 11 7 3 4 . . 12 3 12 3 5 . . 2 . . . . Heat Flow Errors 52 | . . 2 2 . . 3 . 3 . . . . . . . . . . . 3 8 2 2 . . 11 5 4 2 3 . . 2 . . . . Energy Discharges 47 | . . 1 . . . 6 . 2 1 . . . . . . . . . . 3 10 2 . . . 9 5 4 1 1 . 1 . . . 1 . Parts Rejected 5 | . . 1 . . 1 . . . . . . . . . . . . . . . . . . . . 3 . . . . . . . . . . . Data Loss (minor) 49 | . . 4 . . 1 2 . 3 1 . . . . . . . . . . 4 9 . 1 . . 8 4 5 1 4 . . 1 . . 1 . Data Loss (major) 6 | . . . . . . . . 1 . . . . . . . . . . . . . 1 . . . 3 . . . . . . . . . 1 . Misfires 12 | . . 1 . . . 1 1 2 . . . . . . . . . . . 2 . 1 1 . . . 1 1 . 1 . . . . . . . Alerts 7 | . . . . . . . 1 . . . . . . . . . . . . . . 1 . . . . 2 . 1 1 . 1 . . . . . Misdirections 1 | . . . . . . . . . . . . . . . . . . . . . . . . . . . . 1 . . . . . . . . . Weapon Failures 57 | . . 3 . . . 1 . . . . . . . . . . . . . 11 9 5 . . . 20 1 4 . 1 . . 1 . . 1 . Overload Shots 6 | . . . . . . . . . . . . . . . . . . . . . . . . . . . . . . . . . . . . 6 . Overflow Damage 370 | . . . . . . . . 215 . . . . . 56 . 9 . . . . . . . . . 66 . . . . . . . . . 24 . Projectiles 3 | . . . . . . . . . . . . . . . . . . . . . . . . . . . . . . . . . . . . 3 . Explosions 346 | . . . . . . . . 215 . . . . . 56 . 9 . . . . . . . . . 66 . . . . . . . . . . . Melee 21 | . . . . . . . . . . . . . . . . . . . . . . . . . . . . . . . . . . . . 21 . Knockbacks 6 | . . . . . 2 1 . . . . . . . . . 1 . . . . . . . . . . . . . . . . . . 1 1 . Impact 6 | . . . . . 2 1 . . . . . . . . . 1 . . . . . . . . . . . . . . . . . . 1 1 . Kinetic . | . . . . . . . . . . . . . . . . . . . . . . . . . . . . . . . . . . . . . . Secondary . | . . . . . . . . . . . . . . . . . . . . . . . . . . . . . . . . . . . . . . Self-Inflicted Damage 273 | . . . . . 55 . . . . . . . . 115 . . . . . 24 17 . . . . 44 . . . . . . . . 18 . . Shots 8 | . . . . . 2 . . . . . . . . 2 . . . . . 1 1 . . . . 1 . . . . . . . . 1 . . Rammed 63 | . . 3 . 9 6 12 . . . . . . . 1 . 6 2 . . 2 2 . . . . 7 . 1 . . . 4 2 . 2 4 . Targets Rammed 68 | . . 5 . 9 7 13 . . . . . . . 1 . 7 2 . . 2 2 . . . . 7 . 1 . . . 4 2 . 2 4 . Kicked . | . . . . . . . . . . . . . . . . . . . . . . . . . . . . . . . . . . . . . . Crushed 5 | . . 2 . . 1 1 . . . . . . . . . 1 . . . . . . . . . . . . . . . . . . . . . Highest Temperature 712 | . 12 151 408 199 13 368 378 370 215 172 . 421 132 220 220 220 413 345 207 476 416 204 88 375 264 712 326 266 101 190 163 510 194 135 135 135 115 Average Temperature 116 | . 5 37 143 110 13 61 139 130 99 63 . 110 58 78 84 81 135 126 91 148 133 73 46 156 151 157 127 100 46 101 105 134 99 91 123 98 115 Received Heat Transfer 4256 | . 66 483 28 388 198 567 . 381 . 9 . 172 57 150 . 87 82 18 . 396 339 81 . 18 18 271 9 63 . 18 27 82 56 4 48 117 23 Effects 23 | . . . . . . . . 3 . . . . . . 1 . . . 1 6 4 . . . . 6 . . . . . 2 . . . . . Shutdowns 1 | . . . . . . . . . . . . . . . . . . . . . . . . . . 1 . . . . . . . . . . . Energy Bleed 4 | . . . . . . . . 2 . . . . . . . . . . . 1 1 . . . . . . . . . . . . . . . . Interference 11 | . . . . . . . . 1 . . . . . . 1 . . . 1 5 3 . . . . . . . . . . . . . . . . Matter Decay 1 | . . . . . . . . . . . . . . . . . . . . . . . . . . 1 . . . . . . . . . . . Short Circuit 1 | . . . . . . . . . . . . . . . . . . . . . . . . . . . . . . . . 1 . . . . . Damage (major) 4 | . . . . . . . . . . . . . . . . . . . . . . . . . . 4 . . . . . . . . . . . Damage (core) 1 | . . . . . . . . . . . . . . . . . . . . . . . . . . . . . . . . 1 . . . . . Siege Activations 78 | . . . . . . . 4 11 1 1 . 3 2 2 1 1 . . . 4 16 2 . . . 11 1 1 . . . 5 5 . 1 6 . Total Turns 2988 | . . . . . . . 22 492 4 20 . 41 18 60 13 17 . . . 49 886 29 . . . 166 9 6 . . . 539 18 . 30 569 . Longest Duration 507 | . . . . . . . 13 290 4 20 . 18 13 59 13 17 . . . 25 303 20 . . . 84 9 6 . . . 507 10 . 30 175 . Robots Corrupted . | . . . . . . . . . . . . . . . . . . . . . . . . . . . . . . . . . . . . . . Combat Hostiles . | . . . . . . . . . . . . . . . . . . . . . . . . . . . . . . . . . . . . . . Parts Fried 10 | . 3 . . . . . . 1 . . . . . . . . 3 1 . . 2 . . . . . . . . . . . . . . . . Impact Corruptions 1 | . . . . . . . . . . . . . . . . . . . . . . . . . . . . . . . . . . . . 1 . Robots Melted . | . . . . . . . . . . . . . . . . . . . . . . . . . . . . . . . . . . . . . . Combat Hostiles . | . . . . . . . . . . . . . . . . . . . . . . . . . . . . . . . . . . . . . . Parts Melted 12 | . . . . 2 1 1 . 1 . . . 2 . . . . . . . . 2 . . . . 2 . . . . . . . . 1 . . Heat Transferred 2358 | . . 37 185 1036 . . . 800 . . . . . . . . . . . . . . . . . 300 . . . . . . . . . . . Parts Sabotaged 12 | . . . . . . . . . . . . . . . . . . . . 3 3 . . . . . . . . . . . . . 2 4 . Parts Stolen . | . . . . . . . . . . . . . . . . . . . . . . . . . . . . . . . . . . . . . . Parts Stripped . | . . . . . . . . . . . . . . . . . . . . . . . . . . . . . . . . . . . . . . Power Chain Reactions 4 | . . . . . . . . . . . . . . . . . . . . 1 2 . . . . . . . . . . . . . 1 . . Missiles Intercepted . | . . . . . . . . . . . . . . . . . . . . . . . . . . . . . . . . . . . . . . Alert | -11 -10 -9 -9 -8 -8 -7 -7 -7 -7 -7 -7 -7 -6 -6 -6 -6 -6 -6 -6 -6 -5 -5 -5 -5 -4 -4 -4 -4 -4 -3 -3 -3 -3 -2 -1 -1 -1 ------- Run | Scr Mat Mat Min Mat Sto Fac Was Fac Low Low Zio Dee Pro Fac Was Fac Ext Cet Arc Hub Fac Upp Upp War Pro Fac Upp Upp Zhi Pro Res Qua Sec Res Acc Com Ac0 Peak Influence 7779 | . 95 470 61 463 617 1884 674 4072 . . . . . 1159 364 901 917 1132 574 1995 4250 . . . . 3607 . . . . 151 448 700 741 4653 7779 . Initial 2977 | . . 39 11 23 52 175 659 471 . . . . . 240 364 254 441 512 372 200 1100 . . . . 56 . . . . . . 245 393 363 2977 . Average 1698 | . 68 139 56 243 327 831 668 1182 . . . . . 860 364 642 428 802 517 1069 2147 . . . . 1143 . . . . 51 269 436 591 3535 6202 . Maximum Alert Level 5 | . . 2 . 2 2 5 2 5 . . . . . 4 1 3 3 4 2 5 5 . . . . 5 . . . . . 2 3 3 5 5 . Low Security (%) 18 | 100 100 81 100 36 16 7 . 35 . . . . . . . . 30 . . . . . . . . 22 . . . . 100 32 10 . . . . Level 1 14 | . . 14 . 53 57 29 . 3 . . . . . 9 100 7 4 . 14 3 . . . . . 10 . . . . . 37 34 6 1 . . Level 2 16 | . . 3 . 10 26 14 100 11 . . . . . 16 . 49 45 26 85 19 . . . . . 9 . . . . . 29 48 79 3 . . Level 3 11 | . . . . . . 13 . 5 . . . . . 72 . 43 18 67 . 40 . . . . . 18 . . . . . . 6 14 4 . . Level 4 6 | . . . . . . 21 . 9 . . . . . 1 . . . 6 . 18 23 . . . . 10 . . . . . . . . 11 . . Level 5 8 | . . . . . . 13 . 10 . . . . . . . . . . . 9 44 . . . . 5 . . . . . . . . 1 19 . High Security 24 | . . . . . . . . 23 . . . . . . . . . . . 7 31 . . . . 23 . . . . . . . . 77 80 . Max Security . | . . . . . . . . . . . . . . . . . . . . . . . . . . . . . . . . . . . . . . Sterilizations 4 | . . . . . . . . 1 . . . . . . . . . . . . 1 . . . . 1 . . . . . . . . 1 . . Squads Dispatched 287 | . 1 5 . 1 5 22 . 43 . . . . . 9 . 5 3 1 . 15 43 . . . . 34 . . . . 5 4 11 . 44 36 . Investigation 32 | . . 3 . . . 6 . 5 . . . . . 2 . 1 1 1 . 2 2 . . . . 5 . . . . 3 . . . 1 . . Extermination 26 | . . . . . . 3 . 5 . . . . . 1 . 1 . . . 2 2 . . . . 3 . . . . . 3 4 . 2 . . Reinforcement 40 | . 1 2 . 1 3 6 . 3 . . . . . 1 . 2 1 . . 6 3 . . . . 1 . . . . 2 1 6 . 1 . . Assault 165 | . . . . . 2 6 . 24 . . . . . 4 . 1 1 . . 4 36 . . . . 24 . . . . . . 1 . 26 36 . Garrison 24 | . . . . . . 1 . 6 . . . . . 1 . . . . . 1 . . . . . 1 . . . . . . . . 14 . . Intercept . | . . . . . . . . . . . . . . . . . . . . . . . . . . . . . . . . . . . . . . Searches Triggered . | . . . . . . . . . . . . . . . . . . . . . . . . . . . . . . . . . . . . . . Construction Impeded 8 | . . . . . . 1 . 1 . . . . . 1 . 1 1 . . 2 . . . . . 1 . . . . . . . . . . . Haulers Reinforced 5 | . . . . . . . . 1 . . . . . . . . . . . . 2 . . . . . . . . . 1 . 1 . . . . Active Scanning Responses . | . . . . . . . . . . . . . . . . . . . . . . . . . . . . . . . . . . . . . . Cargo Convoy Interrupts 2 | . . . . . . 1 . . . . . . . . . . . . . . . . . . . 1 . . . . . . . . . . . Stealth | -11 -10 -9 -9 -8 -8 -7 -7 -7 -7 -7 -7 -7 -6 -6 -6 -6 -6 -6 -6 -6 -5 -5 -5 -5 -4 -4 -4 -4 -4 -3 -3 -3 -3 -2 -1 -1 -1 --------- Run | Scr Mat Mat Min Mat Sto Fac Was Fac Low Low Zio Dee Pro Fac Was Fac Ext Cet Arc Hub Fac Upp Upp War Pro Fac Upp Upp Zhi Pro Res Qua Sec Res Acc Com Ac0 Distress Signals 65 | . . 3 . 4 3 2 . 4 . . . . . . . 1 . 2 . 3 2 . . 1 . 3 . . . . 3 . 5 3 7 19 . Communications Jammed . | . . . . . . . . . . . . . . . . . . . . . . . . . . . . . . . . . . . . . . Distress Signals . | . . . . . . . . . . . . . . . . . . . . . . . . . . . . . . . . . . . . . . Times Spotted 1927 | . 6 42 2 37 41 112 6 188 6 15 . 95 27 39 6 28 38 17 4 68 200 15 3 25 5 206 4 15 . 4 13 48 57 25 210 222 98 Peak Tracking Total 37 | . 5 6 2 6 5 12 3 16 3 10 . 37 9 5 2 5 8 5 2 9 14 5 2 12 4 17 2 6 . 1 5 8 6 6 12 12 5 Tactical Retreats 12 | . . 1 . . . 2 . . . . . 1 . . . . . . . 2 1 . . . . . . . . . 1 . 1 . 2 1 . Traps | -11 -10 -9 -9 -8 -8 -7 -7 -7 -7 -7 -7 -7 -6 -6 -6 -6 -6 -6 -6 -6 -5 -5 -5 -5 -4 -4 -4 -4 -4 -3 -3 -3 -3 -2 -1 -1 -1 ------- Run | Scr Mat Mat Min Mat Sto Fac Was Fac Low Low Zio Dee Pro Fac Was Fac Ext Cet Arc Hub Fac Upp Upp War Pro Fac Upp Upp Zhi Pro Res Qua Sec Res Acc Com Ac0 Traps Triggered 28 | . 1 4 . 1 1 4 . 1 . . . . . 2 . 2 . . . . 2 . . . . 4 . . . . . 1 1 . 2 2 . Indirectly . | . . . . . . . . . . . . . . . . . . . . . . . . . . . . . . . . . . . . . . Trap Hack Attempts . | . . . . . . . . . . . . . . . . . . . . . . . . . . . . . . . . . . . . . . Triggered . | . . . . . . . . . . . . . . . . . . . . . . . . . . . . . . . . . . . . . . Disarmed 9 | . . . . . 3 . . . . . . . . . . . . . . . . . . . . . . . . . . 6 . . . . . Reprogrammed . | . . . . . . . . . . . . . . . . . . . . . . . . . . . . . . . . . . . . . . Reused . | . . . . . . . . . . . . . . . . . . . . . . . . . . . . . . . . . . . . . . Traps Extracted . | . . . . . . . . . . . . . . . . . . . . . . . . . . . . . . . . . . . . . . Installed . | . . . . . . . . . . . . . . . . . . . . . . . . . . . . . . . . . . . . . . Triggered 23 | . . . . . . . . . . . . . . . . . . . . . . 1 . 21 . . 1 . . . . . . . . . . Machines | -11 -10 -9 -9 -8 -8 -7 -7 -7 -7 -7 -7 -7 -6 -6 -6 -6 -6 -6 -6 -6 -5 -5 -5 -5 -4 -4 -4 -4 -4 -3 -3 -3 -3 -2 -1 -1 -1 ---------- Run | Scr Mat Mat Min Mat Sto Fac Was Fac Low Low Zio Dee Pro Fac Was Fac Ext Cet Arc Hub Fac Upp Upp War Pro Fac Upp Upp Zhi Pro Res Qua Sec Res Acc Com Ac0 Machines Disabled 172 | . . 1 . 2 3 8 . 54 . 2 . 4 . 8 . 8 2 . 2 16 8 1 . 1 . 30 . . . . . 4 6 . 3 7 2 Max in Single Turn 13 | . . 1 . 1 1 2 . 13 . 1 . 1 . 2 . 2 1 . 1 9 4 1 . . . 6 . . . . . 1 2 . 1 2 1 Garrison Access 13 | . . . . . . 2 . . . . . . . 2 . . . . . 1 1 . . . . 1 . . . . 1 1 . 2 2 . . Phase Generator 1 | . . . . . . . . . . . . . . . . . . . . . . . . . . . . . . . . . . . . 1 . Network Hub 4 | . . . . . . . . . . . . . . . . . . . . 4 . . . . . . . . . . . . . . . . . Energy Cycler 1 | . . . . . . . . . . . . . . . . . . . . . . . . . . . . . . . . . . . 1 . . Machines Sabotaged 5 | . . . . . . . . . . . . . . . . 1 . . . 2 . . . . . 2 . . . . . . . . . . . Garrisons Compromised . | . . . . . . . . . . . . . . . . . . . . . . . . . . . . . . . . . . . . . . Overloaded Fab Kills . | . . . . . . . . . . . . . . . . . . . . . . . . . . . . . . . . . . . . . . Hacking | -11 -10 -9 -9 -8 -8 -7 -7 -7 -7 -7 -7 -7 -6 -6 -6 -6 -6 -6 -6 -6 -5 -5 -5 -5 -4 -4 -4 -4 -4 -3 -3 -3 -3 -2 -1 -1 -1 --------- Run | Scr Mat Mat Min Mat Sto Fac Was Fac Low Low Zio Dee Pro Fac Was Fac Ext Cet Arc Hub Fac Upp Upp War Pro Fac Upp Upp Zhi Pro Res Qua Sec Res Acc Com Ac0 Machines Accessed 122 | . . 6 . 3 6 15 . 12 . 2 . . 1 7 . 6 8 1 . 2 7 1 . 4 1 10 . . 4 . 5 9 7 2 3 . . Terminals 70 | . . 5 . 2 4 5 . 6 . 1 . . 1 2 . 4 8 1 . 2 3 1 . . 1 5 . . . . 3 8 7 . 1 . . Fabricators 26 | . . . . . . 6 . 4 . . . . . 4 . 2 . . . . 3 . . . . 5 . . . . 1 . . . 1 . . Repair Stations . | . . . . . . . . . . . . . . . . . . . . . . . . . . . . . . . . . . . . . . Recycling Units 8 | . . 1 . 1 2 2 . 2 . . . . . . . . . . . . . . . . . . . . . . . . . . . . . Scanalyzers . | . . . . . . . . . . . . . . . . . . . . . . . . . . . . . . . . . . . . . . Garrison Access 9 | . . . . . . 2 . . . . . . . 1 . . . . . . 1 . . . . . . . . . 1 1 . 2 1 . . Total Hacks 451 | . . 19 . 11 18 38 . 43 . 7 . . 6 19 . 12 27 3 . 3 29 7 . 6 1 44 . . 17 . 24 65 26 10 16 . . Successful 266 | . . 12 . 4 11 24 . 32 . 7 . . 6 6 . 6 12 . . 2 18 7 . 6 1 25 . . 17 . 7 42 16 2 3 . . Failed 184 | . . 7 . 7 7 14 . 11 . . . . . 13 . 6 15 3 . 1 11 . . . . 19 . . . . 17 22 10 8 13 . . Catastrophic 27 | . . 2 . 1 1 3 . 3 . . . . . 3 . 1 2 . . . 2 . . . . 3 . . . . 4 . 1 . 1 . . Database Lockouts 1 | . . . . . . . . . . . . . . . . . . . . . . . . . . . . . . . . 1 . . . . . Manual 252 | . . 16 . 9 9 13 . 22 . . . . . 15 . 8 17 1 . 3 20 . . . . 38 . . . . 16 47 18 . . . . Terminals 294 | . . 17 . 9 14 13 . 23 . 3 . . 6 8 . 9 27 3 . 3 20 7 . . 1 20 . . . . 16 62 26 . 7 . . Fabricators 88 | . . . . . . 21 . 14 . . . . . 8 . 3 . . . . 8 . . . . 24 . . . . 6 . . . 4 . . Repair Stations . | . . . . . . . . . . . . . . . . . . . . . . . . . . . . . . . . . . . . . . Recycling Units 16 | . . 2 . 2 4 2 . 6 . . . . . . . . . . . . . . . . . . . . . . . . . . . . . Scanalyzers . | . . . . . . . . . . . . . . . . . . . . . . . . . . . . . . . . . . . . . . Garrison Access 26 | . . . . . . 2 . . . . . . . 3 . . . . . . 1 . . . . . . . . . 2 3 . 10 5 . . Terminal Hacks 163 | . . 8 . 4 8 5 . 12 . 7 . . 6 . . 2 10 . . . 9 7 . 6 1 10 . . 17 . 2 34 13 . 2 . . Record 32 | . . . . . . . . . . 7 . . 6 . . . . . . . . 7 . 5 1 . . . 5 . . 1 . . . . . Part Schematic 10 | . . . . . . 2 . . . . . . . . . . . . . . . . . . . 1 . . 4 . . 2 1 . . . . Robot Analysis 6 | . . . . . . . . 1 . . . . . . . . . . . . . . . . . . . . 4 . . . 1 . . . . Prototype ID Bank 20 | . . . . . . . . 1 . . . . . . . . . . . . 2 . . . . . . . 4 . . 10 2 . 1 . . Open Door 8 | . . . . . 1 . . . . . . . . . . . 4 . . . . . . 1 . . . . . . . . 2 . . . . Branch Access Points 8 | . . 1 . 1 . 1 . 1 . . . . . . . 1 . . . . 1 . . . . 1 . . . . 1 . . . . . . Terminal Index 2 | . . . . . . 1 . . . . . . . . . . . . . . . . . . . . . . . . . 1 . . . . . Fabricator Index 5 | . . . . . . 1 . 1 . . . . . . . . . . . . . . . . . 1 . . . . . 1 . . 1 . . Garrison Index 1 | . . . . . . . . . . . . . . . . . . . . . . . . . . . . . . . . 1 . . . . . Alert Level 25 | . . 1 . . 1 . . 3 . . . . . . . 1 2 . . . 2 . . . . 3 . . . . 1 8 3 . . . . Unreport Threat 29 | . . 5 . 2 4 . . 4 . . . . . . . . 4 . . . . . . . . 4 . . . . . 2 4 . . . . Locate Traps 2 | . . . . . 1 . . . . . . . . . . . . . . . 1 . . . . . . . . . . . . . . . . Disarm Traps 3 | . . . . . 1 . . . . . . . . . . . . . . . . . . . . . . . . . . 2 . . . . . Hauler Manifests 6 | . . 1 . 1 . . . 1 . . . . . . . . . . . . 3 . . . . . . . . . . . . . . . . Zone Layout 6 | . . . . . . . . . . . . . . . . . . . . . . . . . . . . . . . . 6 . . . . . Fabricator Hacks 29 | . . . . . . 11 . 8 . . . . . 1 . . . . . . 3 . . . . 4 . . . . 2 . . . . . . Network Status 3 | . . . . . . . . 1 . . . . . 1 . . . . . . 1 . . . . . . . . . . . . . . . . Load Schematic 14 | . . . . . . 6 . 4 . . . . . . . . . . . . 1 . . . . 2 . . . . 1 . . . . . . Build 12 | . . . . . . 5 . 3 . . . . . . . . . . . . 1 . . . . 2 . . . . 1 . . . . . . Repair Station Hacks . | . . . . . . . . . . . . . . . . . . . . . . . . . . . . . . . . . . . . . . Recycling Unit Hacks 11 | . . 1 . . 2 2 . 6 . . . . . . . . . . . . . . . . . . . . . . . . . . . . . Process 2 | . . . . . . . . 2 . . . . . . . . . . . . . . . . . . . . . . . . . . . . . Report Inventory 1 | . . . . . . . . 1 . . . . . . . . . . . . . . . . . . . . . . . . . . . . . Retrieve Matter 3 | . . . . . . . . 3 . . . . . . . . . . . . . . . . . . . . . . . . . . . . . Retrieve Components 5 | . . 1 . . 2 2 . . . . . . . . . . . . . . . . . . . . . . . . . . . . . . . Scanalyzer . | . . . . . . . . . . . . . . . . . . . . . . . . . . . . . . . . . . . . . . Garrison Access Hacks 8 | . . . . . . 2 . . . . . . . . . . . . . . 1 . . . . . . . . . 1 1 . 2 1 . . Seal Access 8 | . . . . . . 2 . . . . . . . . . . . . . . 1 . . . . . . . . . 1 1 . 2 1 . . Unauthorized Hacks 55 | . . 3 . . 1 4 . 6 . . . . . 5 . 4 2 . . 2 5 . . . . 11 . . . . 2 7 3 . . . . Terminals 30 | . . 2 . . 1 1 . 4 . . . . . 1 . 2 2 . . 2 1 . . . . 3 . . . . 1 7 3 . . . . Track 1 | . . . . . . . . . . . . . . . . . . . . . . . . . . . . . . . . 1 . . . . . Botnet 20 | . . 1 . . 1 1 . 2 . . . . . 1 . 1 2 . . . 1 . . . . 1 . . . . 1 5 3 . . . . Detonate 2 | . . . . . . . . 2 . . . . . . . . . . . . . . . . . . . . . . . . . . . . . Disrupt 1 | . . . . . . . . . . . . . . . . . . . . . . . . . . . . . . . . 1 . . . . . Operators 1 | . . 1 . . . . . . . . . . . . . . . . . . . . . . . . . . . . . . . . . . . Sabotage 5 | . . . . . . . . . . . . . . . . 1 . . . 2 . . . . . 2 . . . . . . . . . . . Fabricators 24 | . . . . . . 3 . 2 . . . . . 4 . 2 . . . . 4 . . . . 8 . . . . 1 . . . . . . Prioritize 6 | . . . . . . 2 . 1 . . . . . . . . . . . . 1 . . . . 2 . . . . . . . . . . . Liberate 1 | . . . . . . . . . . . . . . . . . . . . . . . . . . 1 . . . . . . . . . . . Fabnet 17 | . . . . . . 1 . 1 . . . . . 4 . 2 . . . . 3 . . . . 5 . . . . 1 . . . . . . Repair Stations . | . . . . . . . . . . . . . . . . . . . . . . . . . . . . . . . . . . . . . . Recycling Units 1 | . . 1 . . . . . . . . . . . . . . . . . . . . . . . . . . . . . . . . . . . Tunnel 1 | . . 1 . . . . . . . . . . . . . . . . . . . . . . . . . . . . . . . . . . . Scanalyzers . | . . . . . . . . . . . . . . . . . . . . . . . . . . . . . . . . . . . . . . Garrison Access . | . . . . . . . . . . . . . . . . . . . . . . . . . . . . . . . . . . . . . . Data Cores Recovered 2 | . . . . . . . . 1 . . . . . . . . . . . . . . . . . . . . . . 1 . . . . . . Used . | . . . . . . . . . . . . . . . . . . . . . . . . . . . . . . . . . . . . . . Hacking Detections 78 | . . 5 . 3 3 12 . 11 . 1 . . . 5 . 5 5 1 . . 4 . . . . 6 . . . . 4 5 5 . 3 . . Full Trace Events 20 | . . . . . . 6 . 4 . . . . . 2 . . 1 1 . . 2 . . . . 2 . . . . 1 . . . 1 . . Feedback Events . | . . . . . . . . . . . . . . . . . . . . . . . . . . . . . . . . . . . . . . Feedback Blocked . | . . . . . . . . . . . . . . . . . . . . . . . . . . . . . . . . . . . . . . Robot Schematics Acquired 6 | . . . . . . . . . . . 4 . . . . . . . . . . . . . . . . . . . . . 2 . . . . Robots Built . | . . . . . . . . . . . . . . . . . . . . . . . . . . . . . . . . . . . . . . Authchips . | . . . . . . . . . . . . . . . . . . . . . . . . . . . . . . . . . . . . . . Time . | . . . . . . . . . . . . . . . . . . . . . . . . . . . . . . . . . . . . . . Total Robot Build Rating . | . . . . . . . . . . . . . . . . . . . . . . . . . . . . . . . . . . . . . . Part Schematics Acquired 38 | . . . . . . 2 . . . . 14 . . . . . . . . . . . . . . 1 . . 4 . . 2 15 . . . . Parts Built 12 | . . . . . . 5 . 3 . . . . . . . . . . . . 1 . . . . 2 . . . . 1 . . . . . . Authchips . | . . . . . . . . . . . . . . . . . . . . . . . . . . . . . . . . . . . . . . Time 560 | . . . . . . 261 . 154 . . . . . . . . . . . . 29 . . . . 58 . . . . 58 . . . . . . Total Part Build Rating 36 | . . . . . . 15 . 9 . . . . . . . . . . . . 3 . . . . 6 . . . . 3 . . . . . . Parts Repaired . | . . . . . . . . . . . . . . . . . . . . . . . . . . . . . . . . . . . . . . Time . | . . . . . . . . . . . . . . . . . . . . . . . . . . . . . . . . . . . . . . Parts Recycled . | . . . . . . . . . . . . . . . . . . . . . . . . . . . . . . . . . . . . . . Recycled Matter 272 | . . . . . . . . 272 . . . . . . . . . . . . . . . . . . . . . . . . . . . . . Retrieved Matter 272 | . . . . . . . . 272 . . . . . . . . . . . . . . . . . . . . . . . . . . . . . Retrieved Components 27 | . . 1 . . 18 8 . . . . . . . . . . . . . . . . . . . . . . . . . . . . . . . Parts Scanalyzed . | . . . . . . . . . . . . . . . . . . . . . . . . . . . . . . . . . . . . . . Part Schematics Acquired . | . . . . . . . . . . . . . . . . . . . . . . . . . . . . . . . . . . . . . . Parts Damaged . | . . . . . . . . . . . . . . . . . . . . . . . . . . . . . . . . . . . . . . Bothacking | -11 -10 -9 -9 -8 -8 -7 -7 -7 -7 -7 -7 -7 -6 -6 -6 -6 -6 -6 -6 -6 -5 -5 -5 -5 -4 -4 -4 -4 -4 -3 -3 -3 -3 -2 -1 -1 -1 ------------ Run | Scr Mat Mat Min Mat Sto Fac Was Fac Low Low Zio Dee Pro Fac Was Fac Ext Cet Arc Hub Fac Upp Upp War Pro Fac Upp Upp Zhi Pro Res Qua Sec Res Acc Com Ac0 Used RIF Installer . | . . . . . . . . . . . . . . . . . . . . . . . . . . . . . . . . . . . . . . Robots Hacked 84 | . . . . . . 1 . . . . . . 2 1 . . 1 1 . 1 29 1 2 17 . 14 1 4 . . . . . 6 . 3 . Non-combat 1 | . . . . . . 1 . . . . . . . . . . . . . . . . . . . . . . . . . . . . . . . Combat 83 | . . . . . . . . . . . . . 2 1 . . 1 1 . 1 29 1 2 17 . 14 1 4 . . . . . 6 . 3 . Robot Hacks Applied 1 | . . . . . . 1 . . . . . . . . . . . . . . . . . . . . . . . . . . . . . . . find_chute 1 | . . . . . . 1 . . . . . . . . . . . . . . . . . . . . . . . . . . . . . . . Relay Couplers Released 7 | . . . . . . 1 . . . . . . . 1 . . . . . . . . . . . 2 . . . . 2 . . . 1 . . Machine Destruction 2 | . . . . . . . . . . . . . . 1 . . . . . . . . . . . . . . . . . . . . 1 . . Programmers 5 | . . . . . . 1 . . . . . . . . . . . . . . . . . . . 2 . . . . 2 . . . . . . Fabnet Peak Effective % 15 | . . . . . . . . . . . . . 3 3 3 3 3 3 3 3 15 15 15 15 6 6 6 6 6 . . . . 3 1 1 1 Autooverrided 83 | . . . . . . . . . . . . . 2 1 . . 1 1 . 1 29 1 2 17 . 14 1 4 . . . . . 6 . 3 . Robots Rewired 23 | . . . . . . 1 . . . . . . . . . . 20 . . . . . . . . . . 2 . . . . . . . . . Allies Hacked 3 | . . . . . . . . . . . . . . . . . . . . . 2 . . 1 . . . . . . . . . . . . . Hacks Repelled . | . . . . . . . . . . . . . . . . . . . . . . . . . . . . . . . . . . . . . . Allies | -11 -10 -9 -9 -8 -8 -7 -7 -7 -7 -7 -7 -7 -6 -6 -6 -6 -6 -6 -6 -6 -5 -5 -5 -5 -4 -4 -4 -4 -4 -3 -3 -3 -3 -2 -1 -1 -1 -------- Run | Scr Mat Mat Min Mat Sto Fac Was Fac Low Low Zio Dee Pro Fac Was Fac Ext Cet Arc Hub Fac Upp Upp War Pro Fac Upp Upp Zhi Pro Res Qua Sec Res Acc Com Ac0 Total Allies 139 | . . . . . 12 1 . . . 2 5 . 2 1 . . 27 6 . 1 29 1 2 17 . 17 1 6 . . . . . 6 . 3 . Largest Group 14 | . . . . . 10 4 . . . 2 5 5 1 1 . . 14 13 7 5 2 1 2 3 . 4 . 2 2 2 2 . . 1 . 3 . Highest-Rated Group 782 | . . . . . 173 64 . . . 62 152 152 29 29 . . 533 782 579 407 67 12 93 175 . 137 . 77 77 77 77 . . 82 . 196 . Highest-Rated Ally 159 | . . . . . 31 16 . . . 31 51 51 29 29 . . 159 159 143 96 54 12 64 74 . 58 . 48 47 47 47 . . 82 . 69 . Total Orders . | . . . . . . . . . . . . . . . . . . . . . . . . . . . . . . . . . . . . . . Ally Attacks 497 | . . . . . 66 36 . . . 5 . 57 2 1 . . 77 81 9 28 39 4 4 21 . 27 1 4 . 5 7 . . 15 . 8 . Total Damage 10502 | . . . . . 838 324 . . . 62 . 542 36 20 . . 1685 2088 120 1328 718 49 72 489 . 614 40 138 . 172 118 . . 558 . 491 . Kills 63 | . . . . . 11 6 . . . . . 6 . . . . 6 14 2 5 4 1 . 2 . . . . . 2 . . . 1 . 3 . Allies Corrupted 3 | . . . . . . 1 . . . . . . . . . . . . . 1 . . . 1 . . . . . . . . . . . . . Allies Melted 2 | . . . . . . . . . . . . . . . . . . . . . . . . . . . . . . . . . . 2 . . . Intel | -11 -10 -9 -9 -8 -8 -7 -7 -7 -7 -7 -7 -7 -6 -6 -6 -6 -6 -6 -6 -6 -5 -5 -5 -5 -4 -4 -4 -4 -4 -3 -3 -3 -3 -2 -1 -1 -1 ------- Run | Scr Mat Mat Min Mat Sto Fac Was Fac Low Low Zio Dee Pro Fac Was Fac Ext Cet Arc Hub Fac Upp Upp War Pro Fac Upp Upp Zhi Pro Res Qua Sec Res Acc Com Ac0 Robot Analysis Total 6 | . . . . . . . . 1 . . . . . . . . . . . . . . . . . . . . 4 . . . 1 . . . . Derelict Logs Recovered 12 | . . . 1 . . . . . . 1 1 . 2 . . . . . . . . 1 1 . 3 . . 2 . . . . . . . . . Drone Launches . | . . . . . . . . . . . . . . . . . . . . . . . . . . . . . . . . . . . . . . Drone Recoveries . | . . . . . . . . . . . . . . . . . . . . . . . . . . . . . . . . . . . . . . Exploration | -11 -10 -9 -9 -8 -8 -7 -7 -7 -7 -7 -7 -7 -6 -6 -6 -6 -6 -6 -6 -6 -5 -5 -5 -5 -4 -4 -4 -4 -4 -3 -3 -3 -3 -2 -1 -1 -1 ------------- Run | Scr Mat Mat Min Mat Sto Fac Was Fac Low Low Zio Dee Pro Fac Was Fac Ext Cet Arc Hub Fac Upp Upp War Pro Fac Upp Upp Zhi Pro Res Qua Sec Res Acc Com Ac0 Turns Passed 54806 | 77 365 1721 171 950 971 3300 255 3365 710 1202 1259 2226 697 2030 355 994 1023 411 87 1166 3232 735 241 1655 526 3098 708 910 231 601 910 4249 1902 1169 4221 5288 1795 Spaces Moved 27077 | 46 200 875 98 468 532 1824 106 1463 420 713 773 1195 373 1131 188 532 498 219 44 537 981 408 146 952 323 1509 406 523 136 370 535 2110 1045 699 2389 1630 680 Core 5 | 3 . . . . . . . . . . . . . . . . . 2 . . . . . . . . . . . . . . . . . . . Treads 27072 | 43 200 875 98 468 532 1824 106 1463 420 713 773 1195 373 1131 188 532 498 217 44 537 981 408 146 952 323 1509 406 523 136 370 535 2110 1045 699 2389 1630 680 Legs . | . . . . . . . . . . . . . . . . . . . . . . . . . . . . . . . . . . . . . . Wheels . | . . . . . . . . . . . . . . . . . . . . . . . . . . . . . . . . . . . . . . Hover . | . . . . . . . . . . . . . . . . . . . . . . . . . . . . . . . . . . . . . . Flight . | . . . . . . . . . . . . . . . . . . . . . . . . . . . . . . . . . . . . . . Fastest Speed 50 | 50 160 145 145 145 145 145 145 160 160 160 160 160 160 160 160 160 160 160 160 160 160 160 160 160 160 160 160 160 160 160 160 160 160 160 160 160 240 Average Speed 160 | 152 160 151 145 145 145 145 159 160 160 160 160 160 160 160 160 160 160 164 160 160 160 160 160 160 160 160 163 160 160 160 160 160 160 160 160 163 240 Slowest Speed 700 | 160 160 160 145 145 145 225 160 160 160 160 160 160 160 160 160 160 160 700 160 160 160 160 160 160 160 160 240 160 160 160 160 240 240 160 240 240 240 Overloaded Moves . | . . . . . . . . . . . . . . . . . . . . . . . . . . . . . . . . . . . . . . Propulsion Burnouts . | . . . . . . . . . . . . . . . . . . . . . . . . . . . . . . . . . . . . . . Robots Hopped . | . . . . . . . . . . . . . . . . . . . . . . . . . . . . . . . . . . . . . . Cave-ins Triggered 2 | . . . . . . 1 . . . . . . . . . . . . . . . . . . . . . . . . . . . . . . 1 Teleports 1 | . . . . . . . . . . . . . . . . . . . . . . . . . . . . . . . . . . . . 1 . Exploration Rate (%) 55 | 4 26 68 27 46 91 39 71 34 72 77 84 89 58 34 84 15 73 68 78 44 22 64 35 89 70 34 62 61 60 70 17 96 57 27 58 46 41 Regions Visited 37 Branch Regions 23 Pre-discovered Areas 6 | . . 1 . . . . . . . 1 . . . . . . . . . . . . . 1 . . . . 3 . . . . . . . . Known Exits Taken 14 | . . 1 . 1 1 . . 1 . . . . 1 . . 1 . . . 1 1 . 1 . 1 1 . . . 1 1 . 1 . . . . Unknown Exits Taken 19 | 1 1 . 1 . . . . . 1 1 1 1 . . . . 1 1 1 . . 1 . 1 . . 1 1 1 . . 1 . 1 1 1 . Scrap Searched 27 | . . . . . . . . . 3 2 3 . 3 . . . . . . . . 5 . . 4 . 3 2 . 2 . . . . . . . Spaces Dug 65 | . . . . . 21 6 . 1 . . 3 . . . . . 1 1 . . 2 . . 1 . 6 . . . . 1 . . . . 22 . Terrain Destroyed 1320 | . . . . . 45 6 . 358 . . 3 . . 77 . 97 1 2 . 172 47 . . 25 16 273 6 1 . . 1 . . . 23 121 46 Melee 16 | . . . . . . 6 . 1 . . 3 . . . . . 1 1 . . 2 . . 1 . . . . . . 1 . . . . . . Projectile 206 | . . . . . . . . 1 . . . . . . . . . 1 . 8 . . . 24 16 59 6 1 . . . . . . 10 39 41 AOE 1076 | . . . . . 45 . . 356 . . . . . 77 . 97 . . . 164 45 . . . . 214 . . . . . . . . 10 68 . Terrain Rammed . | . . . . . . . . . . . . . . . . . . . . . . . . . . . . . . . . . . . . . . Walls Destroyed . | . . . . . . . . . . . . . . . . . . . . . . . . . . . . . . . . . . . . . . Machines Disabled . | . . . . . . . . . . . . . . . . . . . . . . . . . . . . . . . . . . . . . . Actions | -11 -10 -9 -9 -8 -8 -7 -7 -7 -7 -7 -7 -7 -6 -6 -6 -6 -6 -6 -6 -6 -5 -5 -5 -5 -4 -4 -4 -4 -4 -3 -3 -3 -3 -2 -1 -1 -1 --------- Run | Scr Mat Mat Min Mat Sto Fac Was Fac Low Low Zio Dee Pro Fac Was Fac Ext Cet Arc Hub Fac Upp Upp War Pro Fac Upp Upp Zhi Pro Res Qua Sec Res Acc Com Ac0 Total 38283 | 51 230 1111 110 607 621 2257 178 2429 456 770 785 1481 467 1333 238 665 729 264 61 847 2648 485 152 1083 331 2311 452 607 151 381 589 3010 1321 766 2913 4396 997 Wait 6311 | . 5 28 1 21 5 92 31 608 21 34 4 45 43 89 23 46 50 7 5 85 1279 40 . 2 . 355 30 31 2 7 18 652 98 22 199 2322 11 Move 27042 | 45 199 874 97 467 531 1824 105 1462 419 712 772 1194 372 1131 187 531 497 218 43 536 980 407 145 951 322 1508 405 522 135 369 534 2109 1044 698 2388 1629 680 Hop . | . . . . . . . . . . . . . . . . . . . . . . . . . . . . . . . . . . . . . . Pick Up 53 | . . 3 . . 1 5 . 3 . . . 1 . 1 1 2 . . . 2 1 1 . 7 . . . . 2 . 1 9 1 . 3 5 4 Fast Attach 237 | 5 4 14 . 8 5 26 3 4 . 1 . 25 . 4 . 2 . 2 . 15 8 . . 13 1 12 . 2 4 . . 25 28 6 5 14 1 Attach 31 | . . 1 . . . 1 . 2 . . . . . 1 . 1 . . . . 2 . . 2 . . . . 1 . . 12 4 . 2 2 . Detach 19 | . . . . . . 1 . 2 . . . . . . . . . . . . . . . 1 . . . . . . . 6 4 . 2 3 . Swap 98 | . . 3 . 2 5 10 1 6 2 . 4 2 . 7 . . 2 2 . 4 6 . . 2 . 4 2 . 1 1 1 5 . . . 18 8 Drop 222 | 1 2 13 . 8 5 20 4 6 . 1 . 26 . 5 . 2 . 2 . 11 5 . . 19 1 4 . 2 6 1 1 32 17 5 5 14 4 Fire 2612 | . 14 117 8 57 41 118 23 225 8 20 . 138 33 64 21 51 53 14 9 98 243 26 7 12 7 259 8 18 . 3 6 61 83 23 223 305 216 Melee 54 | . . . . . . 7 . 2 . . 5 . . 2 . . 2 4 . . 2 . . 1 . . . . . . 2 5 3 . 16 3 . Ram . | . . . . . . . . . . . . . . . . . . . . . . . . . . . . . . . . . . . . . . Kick . | . . . . . . . . . . . . . . . . . . . . . . . . . . . . . . . . . . . . . . Crush 68 | . . 5 . 9 7 13 . . . . . . . 1 . 7 2 . . 2 2 . . . . 7 . 1 . . . 4 2 . 2 4 . Escape Stasis 6 | . . . . . . . . . . . . . . . . . . . . . . . . . . . . . . . . . . . . 6 . Rewire 129 | . . . . . . 17 . . . . . . . . . . 105 . . . . . . . . . . 7 . . . . . . . . . Trap . | . . . . . . . . . . . . . . . . . . . . . . . . . . . . . . . . . . . . . . Miscellaneous 1401 | . 6 53 4 35 21 123 11 109 6 2 . 50 19 28 6 23 18 15 4 94 120 11 . 73 . 162 7 24 . . 26 90 37 12 68 71 73 Route ------- -11/Scrapyard -10/Materials -9/Materials (discovered 2 exits: *Mat / *Min) -9/Mines -8/Materials (discovered 2 exits: *Fac / *Sto) -8/Storage -7/Factory (discovered 3 exits: *Fac / *Low x2) -7/Waste -7/Factory (discovered 4 exits: *Fac x2 / *Low x2) -7/Lower Caves -7/Lower Caves (discovered 2 exits: *Fac / [*Zio]) -7/Zion (discovered 2 exits: [*Dee] / [*Pro]) -7/Deep Caves -6/Proximity Caves -6/Factory (discovered 4 exits: *Fac x2 / *Low x2) -6/Waste -6/Factory (discovered 4 exits: *Low x2 / *Ext x2) -6/Extension (discovered 2 exits: *Fac / *Cet) -6/Cetus (discovered 2 exits: *Fac / [*Arc]) -6/Archives (discovered 2 exits: *Fac / *Hub) -6/Hub_04(d) (discovered 2 exits: *Fac x2) -5/Factory (discovered 3 exits: *Fac / *Upp x2) -5/Upper Caves -5/Upper Caves -5/Warlord -4/Proximity Caves -4/Factory (discovered 5 exits: *Res x3 / *Upp x2) -4/Upper Caves -4/Upper Caves -4/Zhirov -3/Proximity Caves -3/Research (discovered 4 exits: Res / Arm / *Qua x2) -3/Quarantine (discovered 2 exits: *Res / *Sec) -3/Section 7 -2/Research (discovered 2 exits: *Acc / [*Tes]) -1/Access (discovered 2 exits: [*Sur] / [*Com]) -1/Command (discovered 3 exits: [Sur x2] / [*Ac0]) -1/Access_0 History --------- Turn | Location | Event 1 | -11/Scrapyard | Upgraded with Propulsion slot (x1) 1 | -11/Scrapyard | Upgraded with Utility slot (x1) 38 | -11/Scrapyard | Discovered new exit (range 13) 78 | -11/Scrapyard | Entered Materials 286 | -10/Materials | Discovered new exit (range 11) 305 | -10/Materials | Build established: Hacker-Mutant 443 | -10/Materials | Entered another Materials area 445 | -9/Materials | Reached level 2 817 | -9/Materials | Discovered new exit (range 14) 955 | -9/Materials | Reached level 3 965 | -9/Materials | Upgraded with Weapon slot (x2) 1006 | -9/Materials | Core integrity fell below 50% 1234 | -9/Materials | Reached level 4 1254 | -9/Materials | Upgraded with Weapon slot (x1) 1411 | -9/Materials | Identified exit to Mines 1637 | -9/Materials | Build established: Hacker-Tank 2164 | -9/Materials | Entered Mines 2166 | -9/Mines | Reached level 5 2169 | -9/Mines | Met a Derelict bent on vengeance 2239 | -9/Mines | Discovered new exit (range 17) 2278 | -9/Mines | Learned 8 Materials zone layouts 2335 | -9/Mines | Entered Materials 2336 | -8/Materials | Identified exit to Factory 2337 | -8/Materials | Reached level 6 2448 | -8/Materials | Upgraded with Weapon slot (x2) 2515 | -8/Materials | Reached level 7 2575 | -8/Materials | Core integrity fell below 50% 2748 | -8/Materials | Reached level 8 2856 | -8/Materials | Identified exit to Storage 3000 | -8/Materials | Build established: Hacker-Executioner 3285 | -8/Materials | Entered Storage 3287 | -8/Storage | Reached level 9 3323 | -8/Storage | Met a pair of Derelict thieves 3511 | -8/Storage | Reached level 10 3718 | -8/Storage | Destroyed 8 combat bots 3722 | -8/Storage | Assisted by bots powering up and referring to "LRC-V3" 3731 | -8/Storage | Discovered exit to Factory (range 12) 3741 | -8/Storage | Reached level 11 3845 | -8/Storage | Door terminal overloaded 3960 | -8/Storage | Reached level 12 4216 | -8/Storage | Build established: Scavenger-Executioner 4256 | -8/Storage | Entered Factory 4256 | -7/Factory | Accompanied by 4 allies 4258 | -7/Factory | Reached level 13 4622 | -7/Factory | Reached level 14 4756 | -7/Factory | Build established: Hacker-Executioner 4871 | -7/Factory | Garrison activated, responded to threat 5420 | -7/Factory | Crushed by falling debris 5420 | -7/Factory | Core integrity fell below 50% 5433 | -7/Factory | Discovered new exit (range 9) 5494 | -7/Factory | Fabricated Enh. Autogun (x1) 5525 | -7/Factory | Reached level 15 5856 | -7/Factory | Fabricated Enh. Autogun? 5856 | -7/Factory | First assault squad dispatched 5889 | -7/Factory | Cargo convoy interrupted 6157 | -7/Factory | Reached level 16 6283 | -7/Factory | Fabricated Enh. Autogun? 6768 | -7/Factory | Fabricated Enh. Autogun (x1) 6862 | -7/Factory | Identified exit to Lower Caves 7007 | -7/Factory | Upgraded with Utility slot (x1) 7104 | -7/Factory | Upgraded with Weapon slot (x1) 7108 | -7/Factory | Fabricated Enh. Autogun? 7410 | -7/Factory | Reached level 17 7556 | -7/Factory | Sucked down chute 7556 | -7/Factory | Entered Waste 7584 | -7/Waste | Spotted C-40 Crusher 7589 | -7/Waste | Destroyed C-40 Crusher 7607 | -7/Waste | Destroyed C-40 Crusher 7610 | -7/Waste | Destroyed C-40 Crusher 7619 | -7/Waste | Spotted C-40 Crusher 7630 | -7/Waste | Destroyed C-40 Crusher 7643 | -7/Waste | Spotted C-40 Crusher 7656 | -7/Waste | Destroyed C-40 Crusher 7718 | -7/Waste | Spotted C-40 Crusher 7736 | -7/Waste | Destroyed C-40 Crusher 7779 | -7/Waste | Discovered new exit (range 13) 7811 | -7/Waste | Entered Factory 8165 | -7/Factory | Fabricated Enh. Autogun? 8187 | -7/Factory | Upgraded with Utility slot (x1) 8376 | -7/Factory | Discovered new exit (range 7) 8377 | -7/Factory | Discovered new exit (range 17) 9462 | -7/Factory | Fabricated Enh. Autogun (x1) 9514 | -7/Factory | Reached level 18 9521 | -7/Factory | Upgraded with Utility slot (x1) 9535 | -7/Factory | Destroyed 8 combat bots 9686 | -7/Factory | Fabricated Enh. Autogun (x1) 9751 | -7/Factory | Build established: Machinist-Executioner 9811 | -7/Factory | First assault squad dispatched 9838 | -7/Factory | Garrison activated, responded to threat 10381 | -7/Factory | High security lockdown imminent 10461 | -7/Factory | High security lockdown engaged 10584 | -7/Factory | Destroyed 7 combat bots 10674 | -7/Factory | Destroyed 9 combat bots 10771 | -7/Factory | Reached level 19 10833 | -7/Factory | Destroyed 27 combat bots 10947 | -7/Factory | Garrison activated, responded to threat 10981 | -7/Factory | Sterilization system engaged 10981 | -7/Factory | Non-combat units ordered to evacuate 11006 | -7/Factory | Destroyed 23 combat bots 11039 | -7/Factory | Destroyed 8 combat bots 11081 | -7/Factory | Combat units ordered to evacuate 11176 | -7/Factory | Entered Lower Caves 11177 | -7/Lower Caves | Acquired the password to a Derelict Tinkerer's latest research 11753 | -7/Lower Caves | Encountered a Warlord checkpoint 11864 | -7/Lower Caves | Discovered new exit (range 16) 11886 | -7/Lower Caves | Entered another Lower Caves area 12312 | -7/Lower Caves | Discovered new exit (range 8) 12441 | -7/Lower Caves | Encountered a Warlord checkpoint 12518 | -7/Lower Caves | Learned Extension terminal intel 12518 | -7/Lower Caves | A Commander dispatched an escort 12621 | -7/Lower Caves | Attracted the attention of an 0b10 checkpoint 12678 | -7/Lower Caves | Discovered new exit (range 5) 12727 | -7/Lower Caves | Attracted the attention of an 0b10 base 12761 | -7/Lower Caves | Destroyed 10 combat bots 12797 | -7/Lower Caves | Learned location of 1 exit from Proximity Caves 12797 | -7/Lower Caves | Learned Extension trap positions 13088 | -7/Lower Caves | Entered Zion 13156 | -7/Zion | Discovered new exit (range 12) 13412 | -7/Zion | Learned location of 1 exit from Lower Caves 14091 | -7/Zion | Gained Derelict followers 14333 | -7/Zion | Discovered new exit (range 4) 14336 | -7/Zion | Saw the warning signs outside the Deep Caves entrance 14347 | -7/Zion | Entered Deep Caves 14347 | -7/Deep Caves | Accompanied by 5 allies 14574 | -7/Deep Caves | Z-Facility disabled 14589 | -7/Deep Caves | Attacked by Z-Imprinter 14591 | -7/Deep Caves | Destroyed Z-Imprinter 14663 | -7/Deep Caves | Found Prototype Device 14663 | -7/Deep Caves | Identified Zio. Metafield Generator 14685 | -7/Deep Caves | Found Prototype Protection 14685 | -7/Deep Caves | Identified Zio. Weapon Casing 15229 | -7/Deep Caves | Spotted as-40508 15252 | -7/Deep Caves | Destroyed as-40508 15275 | -7/Deep Caves | Triggered Deep Caves wall 15282 | -7/Deep Caves | Exposed GOLEM chamber 15300 | -7/Deep Caves | Spotted AS-82955 15301 | -7/Deep Caves | Destroyed AS-82955 15313 | -7/Deep Caves | Spotted AS-81288 15314 | -7/Deep Caves | Destroyed AS-81288 15334 | -7/Deep Caves | Found GOLEM Unit 15353 | -7/Deep Caves | Found GOLEM Unit 15375 | -7/Deep Caves | Found GOLEM Unit 15395 | -7/Deep Caves | Found GOLEM Unit 15412 | -7/Deep Caves | Found GOLEM Unit 15419 | -7/Deep Caves | Found GOLEM Unit 15423 | -7/Deep Caves | Found GOLEM Unit 15468 | -7/Deep Caves | Destroyed 72 combat bots 15549 | -7/Deep Caves | Spotted as-72103 15725 | -7/Deep Caves | Found GOLEM Unit 15734 | -7/Deep Caves | Found GOLEM Unit 15749 | -7/Deep Caves | Destroyed 7 combat bots 16563 | -7/Deep Caves | Discovered new exit (range 6) 16573 | -7/Deep Caves | Entered Proximity Caves 16574 | -6/Proximity Caves | Identified exit to Factory 16575 | -6/Proximity Caves | Reached level 20 16714 | -6/Proximity Caves | Destroyed 10 combat bots 16759 | -6/Proximity Caves | Learned location of 1 exit from Proximity Caves 16759 | -6/Proximity Caves | Learned Factory stockpile data 16759 | -6/Proximity Caves | Learned Research security intel 16759 | -6/Proximity Caves | Learned Extension garrison access intel 16764 | -6/Proximity Caves | Attracted the attention of an 0b10 base 16837 | -6/Proximity Caves | Learned Factory security intel 17135 | -6/Proximity Caves | Attracted the attention of an 0b10 checkpoint 17200 | -6/Proximity Caves | Destroyed 7 combat bots 17237 | -6/Proximity Caves | Learned location of 1 exit from Proximity Caves 17270 | -6/Proximity Caves | Entered Factory 17271 | -6/Factory | Identified exit to Lower Caves 17465 | -6/Factory | Reached level 21 17471 | -6/Factory | Upgraded with Utility slot (x1) 17970 | -6/Factory | First assault squad dispatched 18003 | -6/Factory | Spotted B-75 Beast 18013 | -6/Factory | Destroyed B-75 Beast 18259 | -6/Factory | Discovered new exit (range 9) 18616 | -6/Factory | Local machine network offline 18866 | -6/Factory | Discovered new exit (range 6) 19126 | -6/Factory | Identified exit to Factory 19300 | -6/Factory | Sucked down chute 19300 | -6/Factory | Entered Waste 19323 | -6/Waste | Destroyed C-40 Crusher 19330 | -6/Waste | Spotted C-40 Crusher 19334 | -6/Waste | Destroyed C-40 Crusher 19348 | -6/Waste | Spotted C-40 Crusher 19354 | -6/Waste | Destroyed C-40 Crusher 19356 | -6/Waste | Destroyed C-40 Crusher 19387 | -6/Waste | Spotted C-40 Crusher 19393 | -6/Waste | Destroyed C-40 Crusher 19432 | -6/Waste | Spotted C-40 Crusher 19486 | -6/Waste | Destroyed C-40 Crusher 19600 | -6/Waste | Discovered new exit (range 18) 19655 | -6/Waste | Entered Factory 19928 | -6/Factory | Identified exit to Extension 20005 | -6/Factory | First assault squad dispatched 20464 | -6/Factory | Reached level 22 20466 | -6/Factory | Upgraded with Weapon slot (x1) 20649 | -6/Factory | Entered Extension 20650 | -6/Extension | Loaded intel: 18 trap records 20651 | -6/Extension | Loaded intel: 10 terminal locations 21164 | -6/Extension | Rescued a captive Derelict 21164 | -6/Extension | Rescued a captive Derelict 21193 | -6/Extension | Rescued A7 21222 | -6/Extension | Rescued a captive Derelict 21240 | -6/Extension | Spotted B-75 Beast 21256 | -6/Extension | Spotted B-75 Beast 21259 | -6/Extension | Destroyed B-75 Beast 21266 | -6/Extension | Destroyed B-75 Beast 21349 | -6/Extension | First assault squad dispatched 21558 | -6/Extension | Rescued a captive Derelict 21561 | -6/Extension | Rescued a captive Derelict 21622 | -6/Extension | Discovered exit to Factory (range 10) 21624 | -6/Extension | Discovered new exit (range 6) 21661 | -6/Extension | Disrupted transfer network 21672 | -6/Extension | Entered Cetus 21672 | -6/Cetus | Accompanied by 13 allies (A7) 21677 | -6/Cetus | Acquired a Cetus Manufacturing Module code from A7 21694 | -6/Cetus | Spotted Cetus Guard 21694 | -6/Cetus | Spotted Cetus Guard 21696 | -6/Cetus | Destroyed Cetus Guard 21696 | -6/Cetus | Spotted Cetus Guard 21699 | -6/Cetus | Spotted Cetus Guard 21704 | -6/Cetus | Allies destroyed Cetus Guard 21710 | -6/Cetus | Allies destroyed Cetus Guard 21714 | -6/Cetus | Allies destroyed Cetus Guard 21812 | -6/Cetus | Started Cetus Manufacturing Module 21829 | -6/Cetus | Discovered new exit (range 17) 21837 | -6/Cetus | Manufactured an Enhanced Grunt 21862 | -6/Cetus | Manufactured an Enhanced Grunt 21862 | -6/Cetus | Spotted Cetus Guard 21863 | -6/Cetus | Spotted Cetus Guard 21865 | -6/Cetus | Spotted Cetus Guard 21868 | -6/Cetus | Spotted Cetus Guard 21871 | -6/Cetus | Allies destroyed Cetus Guard 21872 | -6/Cetus | Discovered exit to Factory (range 18) 21877 | -6/Cetus | Destroyed Cetus Guard 21879 | -6/Cetus | Destroyed Cetus Guard 21883 | -6/Cetus | Destroyed Cetus Guard 21887 | -6/Cetus | Manufactured an Enhanced Grunt 21889 | -6/Cetus | Met Revision 17 21912 | -6/Cetus | Manufactured an Enhanced Grunt 21937 | -6/Cetus | Manufactured an Enhanced Grunt 22032 | -6/Cetus | Escorted A7 to Cetus Mainframe 22083 | -6/Cetus | Entered Archives 22083 | -6/Archives | Accompanied by 7 allies (A7) 22085 | -6/Archives | Reached level 23 22088 | -6/Archives | Received a hacking code to weaken MAIN.C 22136 | -6/Archives | Discovered exit to Factory (range 17) 22146 | -6/Archives | Discovered new exit (range 14) 22170 | -6/Archives | Entered Hub_04(d) 22170 | -6/Hub_04(d) | Accompanied by 5 allies 22185 | -6/Hub_04(d) | Discovered exit to Factory (range 7) 22217 | -6/Hub_04(d) | Discovered exit to Factory (range 10) 22257 | -6/Hub_04(d) | Network Hub disabled 22257 | -6/Hub_04(d) | Network Hub disabled 22424 | -6/Hub_04(d) | Garrison activated, responded to threat 22499 | -6/Hub_04(d) | Spotted Lightning 22504 | -6/Hub_04(d) | Spotted Lightning 22507 | -6/Hub_04(d) | Spotted Lightning 22516 | -6/Hub_04(d) | Destroyed Lightning 22521 | -6/Hub_04(d) | System corruption reached 10% 22524 | -6/Hub_04(d) | Destroyed Lightning 22554 | -6/Hub_04(d) | Found Prototype Processor 22554 | -6/Hub_04(d) | Identified Exp. Targeting Computer 22554 | -6/Hub_04(d) | Spotted Lightning 22565 | -6/Hub_04(d) | Destroyed Lightning 22578 | -6/Hub_04(d) | Found Prototype Device 22578 | -6/Hub_04(d) | Identified Exp. EM Disruption Field 22603 | -6/Hub_04(d) | Found Prototype Device 22603 | -6/Hub_04(d) | Identified Exp. Phase Shifter 22636 | -6/Hub_04(d) | Found Exp. EM Disruption Field 22639 | -6/Hub_04(d) | Found Exp. Phase Shifter 22643 | -6/Hub_04(d) | Found Prototype Energy Cannon 22643 | -6/Hub_04(d) | Identified EMDS 22771 | -6/Hub_04(d) | Network Hub disabled 22870 | -6/Hub_04(d) | First assault squad dispatched 22964 | -6/Hub_04(d) | Destroyed 8 combat bots 23119 | -6/Hub_04(d) | Destroyed 7 combat bots 23133 | -6/Hub_04(d) | Spotted Lightning 23133 | -6/Hub_04(d) | Spotted Lightning 23135 | -6/Hub_04(d) | Network Hub disabled 23149 | -6/Hub_04(d) | Destroyed Lightning 23152 | -6/Hub_04(d) | Destroyed Lightning 23157 | -6/Hub_04(d) | Destroyed Lightning 23243 | -6/Hub_04(d) | High security lockdown imminent 23323 | -6/Hub_04(d) | High security lockdown engaged 23336 | -6/Hub_04(d) | Entered Factory 23588 | -5/Factory | Reached level 24 23649 | -5/Factory | Discovered new exit (range 11) 23772 | -5/Factory | Destroyed 15 combat bots 23839 | -5/Factory | Identified exit to Upper Caves 24041 | -5/Factory | Upgraded with Utility slot (x1) 24071 | -5/Factory | Fabricated Enh. Autogun (x1) 24536 | -5/Factory | First assault squad dispatched 24632 | -5/Factory | Destroyed 7 combat bots 24942 | -5/Factory | Local machine network offline 25552 | -5/Factory | High security lockdown imminent 25632 | -5/Factory | High security lockdown engaged 25752 | -5/Factory | Destroyed 7 combat bots 25815 | -5/Factory | Reached level 25 26013 | -5/Factory | Destroyed 9 combat bots 26209 | -5/Factory | Destroyed 15 combat bots 26246 | -5/Factory | Core integrity fell below 50% 26280 | -5/Factory | Destroyed 10 combat bots 26446 | -5/Factory | Sterilization system engaged 26446 | -5/Factory | Non-combat units ordered to evacuate 26450 | -5/Factory | Destroyed 7 combat bots 26541 | -5/Factory | Destroyed 24 combat bots 26546 | -5/Factory | Combat units ordered to evacuate 26568 | -5/Factory | Entered Upper Caves 26832 | -5/Upper Caves | Attracted the attention of an 0b10 checkpoint 26974 | -5/Upper Caves | Learned 4 Factory zone layouts 27099 | -5/Upper Caves | Attracted the attention of an 0b10 base 27143 | -5/Upper Caves | Destroyed 7 combat bots 27160 | -5/Upper Caves | Learned 8 Factory zone layouts 27160 | -5/Upper Caves | Learned 6 Lower Caves zone layouts 27160 | -5/Upper Caves | Learned Research stockpile data 27160 | -5/Upper Caves | Learned Armory terminal intel 27285 | -5/Upper Caves | Discovered new exit (range 11) 27303 | -5/Upper Caves | Entered another Upper Caves area 27483 | -5/Upper Caves | Identified exit to Warlord 27544 | -5/Upper Caves | Entered Warlord 27597 | -5/Warlord | System corruption cleaned by Quarantine Array 28253 | -5/Warlord | Learned Armory emergency access door positions 28254 | -5/Warlord | Learned 4 Command zone layouts 28256 | -5/Warlord | Learned Quarantine security intel 28256 | -5/Warlord | Learned Research fabricator intel 28438 | -5/Warlord | Visited the Vortex Lab 28448 | -5/Warlord | Warlord's base attacked by MAIN.C 28453 | -5/Warlord | Found Prototype Energy Gun 28453 | -5/Warlord | Identified Vortex Rifle 28758 | -5/Warlord | Met Warlord 28758 | -5/Warlord | Reached level 26 28783 | -5/Warlord | Found Exp. Phase Shifter 28798 | -5/Warlord | Warlord forces counterattacked 28798 | -5/Warlord | Found Prototype Device 28798 | -5/Warlord | Identified System Purifier 28823 | -5/Warlord | Found Prototype Processor 28823 | -5/Warlord | Identified Exp. Armor Integrity Analyzer 28828 | -5/Warlord | Found Prototype Hackware 28843 | -5/Warlord | Upgraded with Power slot (x1) 28844 | -5/Warlord | Found Prototype Reactor 28844 | -5/Warlord | Identified Vortex Chain Reactor 28973 | -5/Warlord | P-70 Sage assimilated allied AX-NMN(M) 28981 | -5/Warlord | Upgraded with Weapon slot (x1) 29070 | -5/Warlord | Spotted Striker 29070 | -5/Warlord | Spotted Executioner 29074 | -5/Warlord | Destroyed Executioner 29075 | -5/Warlord | Destroyed Striker 29077 | -5/Warlord | Spotted Striker 29082 | -5/Warlord | Destroyed Striker 29094 | -5/Warlord | Discovered new exit (range 17) 29113 | -5/Warlord | Destroyed 7 combat bots 29114 | -5/Warlord | Found Prototype Processor 29114 | -5/Warlord | Identified Exp. Core Analyzer 29121 | -5/Warlord | Found Corrupted Prototype Device 29123 | -5/Warlord | Warlord base infiltrated, sounded retreat 29135 | -5/Warlord | Found Exp. Core Analyzer 29148 | -5/Warlord | Spotted Executioner 29199 | -5/Warlord | Entered Proximity Caves 29200 | -4/Proximity Caves | Identified exit to Factory 29512 | -4/Proximity Caves | Attracted the attention of an 0b10 checkpoint 29537 | -4/Proximity Caves | Learned Research stockpile data 29562 | -4/Proximity Caves | Learned Research emergency access door positions 29706 | -4/Proximity Caves | Learned 8 Research zone layouts 29725 | -4/Proximity Caves | Entered Factory 29726 | -4/Factory | Identified exit to Research 29848 | -4/Factory | Garrison activated, responded to threat 29863 | -4/Factory | Fabricated Enh. Autogun? 29893 | -4/Factory | Destroyed 9 combat bots 30084 | -4/Factory | Fabricated Enh. Autogun (x1) 30101 | -4/Factory | Reached level 27 30144 | -4/Factory | Identified exit to Upper Caves 30328 | -4/Factory | Spotted B-86 Titan 30330 | -4/Factory | Destroyed B-86 Titan 30375 | -4/Factory | Discovered exit to Research (range 4) 31175 | -4/Factory | Cargo convoy interrupted 31175 | -4/Factory | Spotted Executioner 31217 | -4/Factory | Destroyed Executioner 31238 | -4/Factory | Destroyed 8 combat bots 31262 | -4/Factory | Found Prototype Processor 31262 | -4/Factory | Identified Spectral Analyzer 31975 | -4/Factory | First assault squad dispatched 32086 | -4/Factory | High security lockdown imminent 32087 | -4/Factory | Reached level 28 32135 | -4/Factory | Destroyed 7 combat bots 32166 | -4/Factory | High security lockdown engaged 32263 | -4/Factory | Destroyed 7 combat bots 32285 | -4/Factory | Upgraded with Weapon slot (x1) 32347 | -4/Factory | Destroyed 9 combat bots 32428 | -4/Factory | Destroyed 7 combat bots 32575 | -4/Factory | Destroyed 21 combat bots 32713 | -4/Factory | Sterilization system engaged 32713 | -4/Factory | Non-combat units ordered to evacuate 32725 | -4/Factory | Local machine network offline 32742 | -4/Factory | P-70 Sage assimilated allied L-61 Swordsman 32746 | -4/Factory | System corruption reached 10% 32763 | -4/Factory | Core integrity fell below 50% 32789 | -4/Factory | Destroyed 28 combat bots 32813 | -4/Factory | Combat units ordered to evacuate 32823 | -4/Factory | Entered Upper Caves 32879 | -4/Upper Caves | Encountered a Warlord checkpoint 32927 | -4/Upper Caves | Spotted B-86 Titan 32940 | -4/Upper Caves | Destroyed B-86 Titan 33503 | -4/Upper Caves | Discovered new exit (range 6) 33531 | -4/Upper Caves | Entered another Upper Caves area 33634 | -4/Upper Caves | Learned 8 Research zone layouts 33678 | -4/Upper Caves | Learned Research stockpile data 33831 | -4/Upper Caves | Encountered a Warlord checkpoint 34141 | -4/Upper Caves | Attracted the attention of an 0b10 outpost 34426 | -4/Upper Caves | Discovered new exit (range 8) 34441 | -4/Upper Caves | Entered Zhirov 34441 | -4/Zhirov | Accompanied by 2 allies 34441 | -4/Zhirov | Discovered new exit (range 3) 34443 | -4/Zhirov | Reached level 29 34470 | -4/Zhirov | Met Zhirov 34505 | -4/Zhirov | Learned location of Quarantine (-3) 34505 | -4/Zhirov | Learned location of Testing (-2) 34505 | -4/Zhirov | Learned location of Command (-1) 34515 | -4/Zhirov | Zhirov requested help retrieving the SGEMP Prototype 34541 | -4/Zhirov | Found Alien Artifact 34541 | -4/Zhirov | Identified Integrated Reactor 34541 | -4/Zhirov | Installed Integrated Reactor, increased core energy generation (+10) 34609 | -4/Zhirov | Found Alien Artifact 34672 | -4/Zhirov | Entered Proximity Caves 34672 | -3/Proximity Caves | Accompanied by 2 allies 35273 | -3/Proximity Caves | Attracted the attention of an 0b10 checkpoint 35273 | -3/Proximity Caves | Entered Research 35273 | -3/Research | Accompanied by 2 allies 35274 | -3/Research | Identified exit to Quarantine 35274 | -3/Research | Identified exit to Research 35278 | -3/Research | Loaded intel: 4 fabricator locations 35412 | -3/Research | Identified exit to Armory 35473 | -3/Research | Revision forces began assault on 0b10 35559 | -3/Research | Met up with Revision 17++ 35845 | -3/Research | Fabricated Enh. Autogun (x1) 35973 | -3/Research | Research terminal network offline 36183 | -3/Research | Entered Quarantine 36185 | -3/Quarantine | Reached level 30 36187 | -3/Quarantine | Upgraded with Utility slot (x1) 36280 | -3/Quarantine | Central database locked down 36334 | -3/Quarantine | Found Alien Impact Weapon 36409 | -3/Quarantine | Destroyed 9 combat bots 36440 | -3/Quarantine | Identified Core Stripper 36442 | -3/Quarantine | Cryocooling Duct disabled 36457 | -3/Quarantine | Ambient heat levels rising (+20) 36457 | -3/Quarantine | Non-combat units ordered to evacuate 36906 | -3/Quarantine | Found Alien Artifact 36906 | -3/Quarantine | Identified Core Reset Matrix 36906 | -3/Quarantine | Identified Transdimensional Reconstructor 36906 | -3/Quarantine | Used Core Reset Matrix 36910 | -3/Quarantine | Detected hypermatrix surge 37173 | -3/Quarantine | Discovered exit to Research (range 15) 37379 | -3/Quarantine | Cryocooling Duct disabled 37394 | -3/Quarantine | Ambient heat levels rising (+20) 37394 | -3/Quarantine | Combat units ordered to evacuate 37494 | -3/Quarantine | Quarantine Guard activated 38053 | -3/Quarantine | Spotted Quarantine Guard 38056 | -3/Quarantine | Destroyed Quarantine Guard 38078 | -3/Quarantine | Spotted Quarantine Guard 38089 | -3/Quarantine | Destroyed Quarantine Guard 38276 | -3/Quarantine | Spotted Quarantine Guard 38298 | -3/Quarantine | Destroyed Quarantine Guard 38311 | -3/Quarantine | Spotted Quarantine Guard 38331 | -3/Quarantine | Destroyed Quarantine Guard 38446 | -3/Quarantine | Spotted Quarantine Guard 38448 | -3/Quarantine | Destroyed Quarantine Guard 38509 | -3/Quarantine | Spotted Quarantine Guard 38512 | -3/Quarantine | Destroyed Quarantine Guard 38573 | -3/Quarantine | Spotted Quarantine Guard 38587 | -3/Quarantine | Destroyed Quarantine Guard 38827 | -3/Quarantine | Spotted Quarantine Guard 38831 | -3/Quarantine | Destroyed Quarantine Guard 38952 | -3/Quarantine | Spotted Quarantine Guard 38955 | -3/Quarantine | Destroyed Quarantine Guard 38963 | -3/Quarantine | Spotted Quarantine Guard 38979 | -3/Quarantine | Destroyed Quarantine Guard 39253 | -3/Quarantine | Spotted Fortress 39259 | -3/Quarantine | Destroyed Fortress 39281 | -3/Quarantine | Found Prototype Device 39281 | -3/Quarantine | Identified Thermal Barrier 39284 | -3/Quarantine | Found Prototype Device 39284 | -3/Quarantine | Identified Exp. Force Field 40297 | -3/Quarantine | Found Prototype Device 40297 | -3/Quarantine | Identified Exp. EM Disruption Field 40401 | -3/Quarantine | Discovered new exit (range 5) 40401 | -3/Quarantine | Spotted Quarantine Guard 40407 | -3/Quarantine | Destroyed Quarantine Guard 40432 | -3/Quarantine | Entered Section 7 40433 | -3/Section 7 | Sensed 24 artifacts in vicinity 40434 | -3/Section 7 | Reached level 31 40928 | -3/Section 7 | Spotted S7 Guard 40932 | -3/Section 7 | Destroyed S7 Guard 40969 | -3/Section 7 | Found Integrated Thermoelectric Network 40969 | -3/Section 7 | Installed Integrated Thermoelectric Network, gained heat-energy exchange potential 41158 | -3/Section 7 | Found Integrated Mediator 41158 | -3/Section 7 | Installed Integrated Mediator, increased core attachment efficiency. 41313 | -3/Section 7 | Spotted B-86 Titan 41317 | -3/Section 7 | Destroyed B-86 Titan 41468 | -3/Section 7 | Destroyed 12 combat bots 41472 | -3/Section 7 | Discovered exit to Research (range 17) 41565 | -3/Section 7 | Spotted Executioner 41567 | -3/Section 7 | Spotted Executioner 41579 | -3/Section 7 | Destroyed Executioner 41580 | -3/Section 7 | Destroyed Executioner 41620 | -3/Section 7 | Found Prototype Processor 41620 | -3/Section 7 | Identified Exp. Targeting Computer 41781 | -3/Section 7 | Spotted B-99 Colossus 41787 | -3/Section 7 | Destroyed B-99 Colossus 41853 | -3/Section 7 | Found Core Expander 41853 | -3/Section 7 | Installed Core Expander, added new Utility slot 41857 | -3/Section 7 | Found Core Expander 41857 | -3/Section 7 | Installed Core Expander, added new Utility slot 41955 | -3/Section 7 | Found LRC Boosters 41955 | -3/Section 7 | Installed LRC Boosters, increased mass support (+10) 41959 | -3/Section 7 | Found LRC Insulator 41959 | -3/Section 7 | Installed LRC Insulator, gained EM resistance (25) 42136 | -3/Section 7 | Found Exp. Core Analyzer 42182 | -3/Section 7 | First assault squad dispatched 42334 | -3/Section 7 | Entered Research 42334 | -2/Research | Warlord forces began assault on 0b10 42405 | -2/Research | Reached level 32 42405 | -2/Research | Upgraded with Utility slot (x1) 42444 | -2/Research | Research machine network offline 42592 | -2/Research | Discovered new exit (range 18) 42592 | -2/Research | Spotted Striker 42632 | -2/Research | Borebot progress halted 42777 | -2/Research | Spotted Executioner 42803 | -2/Research | Destroyed Executioner 42811 | -2/Research | Spotted Striker 42827 | -2/Research | Found Exp. Targeting Computer 43034 | -2/Research | Discovered new exit (range 10) 43034 | -2/Research | Spotted Striker 43034 | -2/Research | Spotted Striker 43035 | -2/Research | Destroyed Striker 43039 | -2/Research | Destroyed Striker 43060 | -2/Research | Destroyed 7 combat bots 43206 | -2/Research | Spotted Striker 43208 | -2/Research | Destroyed Striker 43211 | -2/Research | Spotted Striker 43211 | -2/Research | Destroyed Striker 43267 | -2/Research | Warlord destroyed during the assault 43503 | -2/Research | Entered Access 43505 | -1/Access | Reached level 33 43555 | -1/Access | Garrison activated, responded to threat 43586 | -1/Access | Garrison activated, responded to threat 43589 | -1/Access | Spotted B-99 Colossus 43592 | -1/Access | Destroyed B-99 Colossus 43655 | -1/Access | Energy Cycler disabled 43720 | -1/Access | Reached level 34 43722 | -1/Access | Upgraded with Weapon slot (x1) 43745 | -1/Access | Found Prototype Ballistic Gun 43745 | -1/Access | Identified Multirail 43753 | -1/Access | First assault squad dispatched 43775 | -1/Access | Destroyed 7 combat bots 43907 | -1/Access | Destroyed 10 combat bots 43980 | -1/Access | Spotted B-99 Colossus 43983 | -1/Access | Destroyed B-99 Colossus 44230 | -1/Access | Reached level 35 44239 | -1/Access | Garrison activated, responded to threat 44433 | -1/Access | High security lockdown imminent 44513 | -1/Access | High security lockdown engaged 44567 | -1/Access | Destroyed Striker 44610 | -1/Access | Destroyed 9 combat bots 44634 | -1/Access | Garrison activated, responded to threat 44647 | -1/Access | Destroyed Striker 44657 | -1/Access | Reached level 36 44708 | -1/Access | Destroyed 23 combat bots 44780 | -1/Access | Spotted Investigator 44780 | -1/Access | Destroyed Investigator 44815 | -1/Access | Destroyed Executioner 44815 | -1/Access | Destroyed Striker 44843 | -1/Access | Destroyed Executioner 44844 | -1/Access | Destroyed Executioner 44844 | -1/Access | Destroyed Striker 44854 | -1/Access | Spotted Striker 44855 | -1/Access | Destroyed Striker 44863 | -1/Access | Spotted Striker 44863 | -1/Access | Destroyed Striker 44894 | -1/Access | Destroyed 25 combat bots 45001 | -1/Access | Destroyed Striker 45025 | -1/Access | Garrison activated, responded to threat 45025 | -1/Access | Spotted Striker 45026 | -1/Access | Destroyed Striker 45036 | -1/Access | Sterilization system engaged 45041 | -1/Access | Destroyed Striker 45042 | -1/Access | Spotted Striker 45042 | -1/Access | Destroyed Striker 45063 | -1/Access | Destroyed 21 combat bots 45082 | -1/Access | Reached level 37 45098 | -1/Access | Destroyed Striker 45336 | -1/Access | Ambient heat levels rising (+10) 45486 | -1/Access | Ambient heat levels rising (+10) 45636 | -1/Access | Ambient heat levels rising (+10) 45672 | -1/Access | Spotted B-99 Colossus 45675 | -1/Access | Destroyed B-99 Colossus 45675 | -1/Access | Spotted B-99 Colossus 45678 | -1/Access | Destroyed B-99 Colossus 45786 | -1/Access | Ambient heat levels rising (+10) 45860 | -1/Access | Discovered new exit (range 6) 45936 | -1/Access | Ambient heat levels rising (+10) 46086 | -1/Access | Ambient heat levels rising (+10) 46236 | -1/Access | Ambient heat levels rising (+10) 46386 | -1/Access | Ambient heat levels rising (+10) 46536 | -1/Access | Ambient heat levels rising (+10) 46686 | -1/Access | Ambient heat levels rising (+10) 46836 | -1/Access | Ambient heat levels rising (+10) 46986 | -1/Access | Ambient heat levels rising (+10) 47136 | -1/Access | Ambient heat levels rising (+10) 47286 | -1/Access | Ambient heat levels rising (+10) 47436 | -1/Access | Ambient heat levels rising (+10) 47586 | -1/Access | Ambient heat levels rising (+10) 47712 | -1/Access | Discovered new exit (range 8) 47724 | -1/Access | Entered Command 47974 | -1/Command | First assault squad dispatched 48071 | -1/Command | High security lockdown imminent 48093 | -1/Command | Destroyed 7 combat bots 48151 | -1/Command | High security lockdown engaged 48278 | -1/Command | Destroyed 12 combat bots 48333 | -1/Command | Spotted Striker 48333 | -1/Command | Spotted Striker 48333 | -1/Command | Destroyed Striker 48333 | -1/Command | Destroyed Striker 48337 | -1/Command | Spotted Investigator 48338 | -1/Command | Destroyed Investigator 48377 | -1/Command | Destroyed 14 combat bots 48471 | -1/Command | Destroyed Executioner 48471 | -1/Command | Reached level 38 48471 | -1/Command | Destroyed Executioner 48471 | -1/Command | Destroyed Executioner 48493 | -1/Command | Destroyed 15 combat bots 48525 | -1/Command | Destroyed 10 combat bots 48701 | -1/Command | Destroyed Executioner 48702 | -1/Command | Destroyed Striker 48745 | -1/Command | Spotted Executioner 48745 | -1/Command | Destroyed Executioner 48763 | -1/Command | Destroyed Executioner 48804 | -1/Command | Destroyed 18 combat bots 48949 | -1/Command | Destroyed Striker 48951 | -1/Command | Destroyed Striker 48952 | -1/Command | Spotted Striker 48953 | -1/Command | Spotted Striker 48953 | -1/Command | Destroyed Striker 48953 | -1/Command | Destroyed Striker 48953 | -1/Command | Spotted Striker 48954 | -1/Command | Destroyed Striker 49005 | -1/Command | Destroyed Striker 49005 | -1/Command | Spotted Striker 49005 | -1/Command | Destroyed Striker 49038 | -1/Command | Destroyed 35 combat bots 49312 | -1/Command | Destroyed Executioner 49315 | -1/Command | Spotted Investigator 49316 | -1/Command | Destroyed Investigator 49354 | -1/Command | Destroyed 10 combat bots 51075 | -1/Command | Phase Generator disabled 51216 | -1/Command | Spotted B-99 Colossus 51224 | -1/Command | Destroyed B-99 Colossus 51360 | -1/Command | Spotted Striker 51361 | -1/Command | Destroyed Striker 51362 | -1/Command | Spotted Striker 51362 | -1/Command | Destroyed Striker 51369 | -1/Command | Spotted Alpha 7 51370 | -1/Command | Spotted Alpha 7 51373 | -1/Command | Destroyed Alpha 7 51374 | -1/Command | Destroyed Alpha 7 51395 | -1/Command | Destroyed 8 combat bots 51411 | -1/Command | Spotted Executioner 51411 | -1/Command | Spotted Executioner 51411 | -1/Command | Spotted Executioner 51411 | -1/Command | Spotted Executioner 51412 | -1/Command | Spotted B-99 Colossus 51413 | -1/Command | Destroyed Executioner 51413 | -1/Command | Destroyed Executioner 51414 | -1/Command | Destroyed B-99 Colossus 51424 | -1/Command | Destroyed Executioner 51424 | -1/Command | Destroyed Executioner 51428 | -1/Command | Spotted B-99 Colossus 51428 | -1/Command | Destroyed B-99 Colossus 51862 | -1/Command | Spotted B-99 Colossus 51865 | -1/Command | Destroyed B-99 Colossus 52113 | -1/Command | Spotted M Guard 52113 | -1/Command | Spotted M Guard 52113 | -1/Command | Spotted Combat Programmer 52115 | -1/Command | Spotted Combat Programmer 52118 | -1/Command | Destroyed M Guard 52119 | -1/Command | Destroyed M Guard 52119 | -1/Command | Destroyed Combat Programmer 52120 | -1/Command | Destroyed Combat Programmer 52120 | -1/Command | All MAIN.C guards destroyed 52205 | -1/Command | Found Prototype Device 52205 | -1/Command | Identified AEGIS Remote Shield 52243 | -1/Command | Found Prototype Energy Cannon 52243 | -1/Command | Identified Cld. Nova Cannon 52332 | -1/Command | Met MAIN.C 52332 | -1/Command | Reached level 39 52334 | -1/Command | Destroyed MAIN.C Shell 52334 | -1/Command | 0b10 Conduit disabled 52334 | -1/Command | MAIN.C activated Command garrisons 52336 | -1/Command | Destroyed MAIN.C 52356 | -1/Command | Discovered new exit (range 31) 52356 | -1/Command | Discovered new exit (range 99) 52356 | -1/Command | Extracted map data and part IDs from MAIN.C's data core 52854 | -1/Command | Found Exp. System Purifier 52865 | -1/Command | Found Exp. Phase Shifter 53003 | -1/Command | Warped through subspace to slip node 53003 | -1/Command | Discovered new exit (range 4) 53012 | -1/Command | Entered Access_0 53013 | -1/Access_0 | Sensed 4 artifacts in vicinity 53013 | -1/Access_0 | Met Architect 53014 | -1/Access_0 | Architect warped through subspace 53014 | -1/Access_0 | Destroyed A8 53054 | -1/Access_0 | Architect warped through subspace 53093 | -1/Access_0 | Subspace Access Node disabled 53098 | -1/Access_0 | Architect warped through subspace 53193 | -1/Access_0 | Architect warped through subspace 53230 | -1/Access_0 | Architect warped through subspace 53271 | -1/Access_0 | Architect warped through subspace 53322 | -1/Access_0 | Architect warped through subspace 53375 | -1/Access_0 | Architect warped through subspace 53433 | -1/Access_0 | Architect warped through subspace 53475 | -1/Access_0 | A6 warped into view 53478 | -1/Access_0 | Destroyed A6 53518 | -1/Access_0 | Found Sigix Corpse 53562 | -1/Access_0 | Architect warped through subspace 53613 | -1/Access_0 | Architect warped through subspace 53662 | -1/Access_0 | Architect warped through subspace 53705 | -1/Access_0 | Architect warped through subspace 53726 | -1/Access_0 | Found Prototype Device 53727 | -1/Access_0 | Identified Desublimator 53737 | -1/Access_0 | Architect warped through subspace 53742 | -1/Access_0 | Found Desublimator 53770 | -1/Access_0 | Architect warped through subspace 53791 | -1/Access_0 | Architect warped through subspace 53793 | -1/Access_0 | Crushed by falling debris 53816 | -1/Access_0 | Architect warped through subspace 53843 | -1/Access_0 | Architect warped through subspace 53857 | -1/Access_0 | Architect warped through subspace 53870 | -1/Access_0 | Architect warped through subspace 53914 | -1/Access_0 | Architect warped through subspace 53953 | -1/Access_0 | Architect warped through subspace 53995 | -1/Access_0 | Subspace Access Node disabled 53996 | -1/Access_0 | Architect warped through subspace 54033 | -1/Access_0 | Architect warped through subspace 54067 | -1/Access_0 | Architect warped through subspace 54096 | -1/Access_0 | Architect warped through subspace 54116 | -1/Access_0 | Architect warped through subspace 54138 | -1/Access_0 | Architect warped through subspace 54155 | -1/Access_0 | Architect warped through subspace 54165 | -1/Access_0 | Core integrity fell below 50% 54171 | -1/Access_0 | Architect warped through subspace 54181 | -1/Access_0 | Architect warped through subspace 54192 | -1/Access_0 | Architect warped through subspace 54202 | -1/Access_0 | Architect warped through subspace 54212 | -1/Access_0 | Architect warped through subspace 54222 | -1/Access_0 | Architect warped through subspace 54231 | -1/Access_0 | Architect warped through subspace 54239 | -1/Access_0 | Architect warped through subspace 54251 | -1/Access_0 | Architect warped through subspace 54269 | -1/Access_0 | Architect warped through subspace 54272 | -1/Access_0 | Architect warped through subspace 54278 | -1/Access_0 | A5 warped into view 54282 | -1/Access_0 | Destroyed A5 54296 | -1/Access_0 | Architect warped through subspace 54304 | -1/Access_0 | Architect warped through subspace 54321 | -1/Access_0 | Subspace Access Node disabled 54342 | -1/Access_0 | Architect warped through subspace 54359 | -1/Access_0 | Architect warped through subspace 54381 | -1/Access_0 | Architect warped through subspace 54396 | -1/Access_0 | Architect warped through subspace 54407 | -1/Access_0 | Architect warped through subspace 54420 | -1/Access_0 | Architect warped through subspace 54423 | -1/Access_0 | Destroyed A2 54429 | -1/Access_0 | Architect warped through subspace 54438 | -1/Access_0 | Architect warped through subspace 54460 | -1/Access_0 | Extracted Singularity Gate Test 138-C access codes from A2's data core 54474 | -1/Access_0 | Architect warped through subspace 54527 | -1/Access_0 | Architect warped through subspace 54556 | -1/Access_0 | Architect warped through subspace 54578 | -1/Access_0 | Architect warped through subspace 54595 | -1/Access_0 | Architect warped through subspace 54649 | -1/Access_0 | Architect warped through subspace 54678 | -1/Access_0 | Architect warped through subspace 54714 | -1/Access_0 | Architect warped through subspace 54733 | -1/Access_0 | Architect warped through subspace 54752 | -1/Access_0 | Core integrity fell below 20% 54755 | -1/Access_0 | Architect warped through subspace 54773 | -1/Access_0 | Architect warped through subspace 54788 | -1/Access_0 | Architect warped through subspace 54800 | -1/Access_0 | Architect warped through subspace 54807 | -1/Access_0 | Destroyed by Architect with Modified Sigix Sheargun Last Messages --------------- 54770_ Quantum Shear penetrates Wall. 54771_ Slug penetrates Machine. 54772_ Slug penetrates Architect. 54772_ Penetrated by Quantum Shear. Architect warps through subspace. 54780_ Penetrated by Quantum Shear. 54786_ Slug penetrates Architect. 54787_ Architect suffers critical hit (Destroy). 54787_ Destroyed Modified Sigix Sheargun. 54787_ Slug penetrates Architect. 54787_ Penetrated by Quantum Shear. Architect warps through subspace. 54794_ Quantum Shear penetrates Wall. 54794_ Machine disabled. 54796_ Penetrated by Quantum Shear. 54799_ Slug penetrates Architect. Architect warps through subspace. 54805_ Penetrated by Quantum Shear. 54805_ Quantum Shear penetrates Wall. 54807_ Penetrated by Quantum Shear. Map ----- +----------------------------------------------------+ | # # #????????????????????????????????????? | | # #####?????????????????????????????????? | | #?????????????????????????????????? | | # #?????????????????????????????????? | | # #?????????????????????????????????? | | # # ?????#????????????????????????????? | | # ?????? #????????????????????????????? | | """# ####### #????????????????????????????? | | " #??????????????????????????????? | | "" ## # ## #????????????????????????????? | | #????????????????????????????? | | #?????????????????????????????? | | ###""" #########????????????????????????????????? | | ??# " #????????????????????????????????????????? | | ???# " #????????????????????????????????????????? | | ????#" "##??????????????????????????????????????? | | ###?## " ###??##????????????????????????????????? | | #?#" #";"### #????????????????????????????????? | | ###" "# ; # ?????????????????????????????????? | | " #" "; ;; ####?#####???##???????????????????? | | ### " ; ;;;"###;#"#### ##??????????????????? | | "#""" ; ; ""; #??????????####????? | | ;;; ;;;;####??????# ###??? | | ! ##????# ##?? | | """ [* ! ##### #?? | | ""## ;;;;;; @;;; !* #?? | | "##"" " ##"" " "" ;;![!! #?? | | #?##" "#######"####; ;;;; !! ;; 0 ? | | #### " ##?????###??#;;; ;; ;;; ? | | #?# " #???????????#### ;; ; ;; ;; ## ##??? | | ###""" #??????????????###### ; ;;### ##??????? | | ##" #?##???????????????#" !; ##???????????? | | ## ##??????????????#"!=; ##???#####????? | | #??????????????#"*]; ###### ####?? | | """## #?????????????# "! !=;##""# ##? | | "" ##" ###?????????????###!!==! "# #? | | "" ####"" #????????????????#"]*!] ## ## | | ""#???# " #????????????????# ! #"; ### | | "#???##" #??????????????# ###"# "" "## | | ##????" #??????????????## #??###""""" "" " | | "#????" #???????????????## #????### " "" " | | ##???#" #????????????????#" ??????## " """ | | "#??? # #????????????????#### ???????### | | ####"# ##??????????????????## ????????# | | ## ##??????????????????? ????????#### | | "# ##?????????????????? ??????????# "" | | """ ##????????????????? ????????### " | | """ #????????????????? ????????# ## | | #????????????????? ????????## | | """" #????????????????? ????????# | +----------------------------------------------------+ Best States ------------- Heat Dissipation 142 Coolant Potential 240 Energy Generation 65 Energy Capacity 1100 Matter Stores 1150 Matter Capacity 1150 Sight Range 19 Terrain Scan Density 10 EM Shielding 3 Armor Coverage 225 Resistance: KI 20 Resistance: TH 20 Resistance: EM 75 Phase Shifting 20 Evasion (%) 60 Targeting Accuracy 24 Target Analysis 12 Core Analysis 12 Armor Integrity Analysis 50 Recoil Reduction 2 Matter Filtering 75 Energy Filtering 50 Particle Charging 30 Salvage Targeting 4 Offensive Hacking 20 Defensive Hacking 10 Item Schematics ----------------- Com. HERF Cannon | -3/Quarantine | Hacked Prc. Matter Filter | -3/Section 7 | Hacked Adv. Myomer Leg | -3/Section 7 | Archive Prc. Phase Gun | -3/Section 7 | Archive Com. Particle Reactor | -3/Section 7 | Archive Imp. KE Penetrator | -3/Section 7 | Archive Cld. Antigrav System | -3/Section 7 | Archive Exp. Shield Generator | -3/Section 7 | Archive Gravity Flail | -3/Section 7 | Archive Centrium Greatsword | -3/Section 7 | Archive Imp. Energy Mantle | -3/Section 7 | Archive Helical Railgun | -3/Section 7 | Archive Centrium Heavy Armor Plating | -3/Section 7 | Archive Imp. Matter Compressor | -3/Section 7 | Archive Adv. Micro-nuke Launcher | -3/Section 7 | Archive Imp. Matter Neutralizer | -3/Section 7 | Archive Robot Schematics ------------------ W-44 Eye | -3/Section 7 | Archive B-74 Champion | -3/Section 7 | Archive Fabricated ------------ Enh. Autogun | x1 | -7/Factory Enh. Autogun | x1 | -7/Factory Enh. Autogun | x1 | -7/Factory Enh. Autogun | x1 | -7/Factory Enh. Autogun | x1 | -7/Factory Enh. Autogun | x1 | -7/Factory Enh. Autogun | x1 | -7/Factory Enh. Autogun | x1 | -7/Factory Enh. Autogun | x1 | -5/Factory Enh. Autogun | x1 | -4/Factory Enh. Autogun | x1 | -4/Factory Enh. Autogun | x1 | -3/Research Alien Tech Used ----------------- Integrated Reactor Core Stripper Core Reset Matrix Integrated Thermoelectric Network Integrated Mediator Core Expander LRC Boosters LRC Insulator Transdimensional Reconstructor Achievements -------------- None Challenges ------------ None RPGLIKE | -11 -10 -9 -9 -8 -8 -7 -7 -7 -7 -7 -7 -7 -6 -6 -6 -6 -6 -6 -6 -6 -5 -5 -5 -5 -4 -4 -4 -4 -4 -3 -3 -3 -3 -2 -1 -1 -1 --------- Run | Scr Mat Mat Min Mat Sto Fac Was Fac Low Low Zio Dee Pro Fac Was Fac Ext Cet Arc Hub Fac Upp Upp War Pro Fac Upp Upp Zhi Pro Res Qua Sec Res Acc Com Ac0 Levels Raised 38 | . . 3 1 3 4 5 . 2 . . . . 1 1 . 1 . . 1 . 2 . . 1 . 2 . . 1 . . 1 1 1 5 2 . XP Earned 60869 | 3000 400 5545 750 4628 5860 6988 46 3515 155 245 73 228 1043 1427 32 618 861 567 127 831 3114 233 100 246 365 3620 111 222 68 301 887 1524 1067 1370 7164 3184 354 XP Spent 60000 | 2900 . 4500 . 4210 6300 7445 . 4605 . . . . . 1700 . 2300 . . . 1250 2000 . . 3100 . 2900 . . . . . 2400 . 2600 8615 3175 . Upgrades 104 | 7 . 10 . 7 14 25 . 10 . . . . . 1 . 1 . . . 1 1 . . 2 . 1 . . . . . 2 . 1 15 6 . Power Slot 1 | . . . . . . . . . . . . . . . . . . . . . . . . 1 . . . . . . . . . . . . . Propulsion Slot 1 | 1 . . . . . . . . . . . . . . . . . . . . . . . . . . . . . . . . . . . . . Utility Slot 8 | 1 . . . . . 1 . 2 . . . . . 1 . . . . . . 1 . . . . . . . . . . 1 . 1 . . . Weapon Slot 10 | . . 3 . 2 . 1 . . . . . . . . . 1 . . . . . . . 1 . 1 . . . . . . . . 1 . . Core Integrity 20 | . . . . . . 19 . . . . . . . . . . . . . . . . . . . . . . . . . . . . 1 . . Heat Dissipation 15 | . . . . 3 5 1 . 6 . . . . . . . . . . . . . . . . . . . . . . . . . . . . . Energy Storage 1 | . . . . . . . . . . . . . . . . . . . . . . . . . . . . . . . . . . . . 1 . Matter Storage 17 | . . . . . . . . 2 . . . . . . . . . . . . . . . . . . . . . . . . . . 13 2 . Mass Support 1 | . . . . . . . . . . . . . . . . . . . . . . . . . . . . . . . . 1 . . . . . Inventory Capacity 5 | . . 1 . . . 3 . . . . . . . . . . . . . 1 . . . . . . . . . . . . . . . . . Sight Range 3 | . . 2 . . . . . . . . . . . . . . . . . . . . . . . . . . . . . . . . . 1 . Ranged Accuracy 4 | . . . . . 2 . . . . . . . . . . . . . . . . . . . . . . . . . . . . . . 2 . Hack Attack % 4 | 3 . 1 . . . . . . . . . . . . . . . . . . . . . . . . . . . . . . . . . . . Hack Defense % 2 | 2 . . . . . . . . . . . . . . . . . . . . . . . . . . . . . . . . . . . . . KI Resistance % 4 | . . 1 . 1 2 . . . . . . . . . . . . . . . . . . . . . . . . . . . . . . . . TH Resistance % 4 | . . 2 . 1 1 . . . . . . . . . . . . . . . . . . . . . . . . . . . . . . . . KI Damage % 4 | . . . . . 4 . . . . . . . . . . . . . . . . . . . . . . . . . . . . . . . . Protomatter Created 24430 | . 76 573 37 420 332 1449 182 2728 52 166 . 1472 384 541 346 476 496 130 121 785 2416 132 . 239 . 1831 55 334 . . 101 980 601 483 3409 2324 759 Integrity Restored 27874 | . 114 988 71 742 397 2606 250 2142 92 29 . 1047 327 568 118 433 322 311 57 2037 2252 249 . 1542 . 3336 165 546 . . 538 1812 739 144 969 1283 1648 Core 20341 | . 98 728 39 511 318 2076 . 1718 71 24 . 847 255 478 84 283 252 148 49 1476 1812 249 . 893 . 2348 165 546 . . 271 951 430 117 639 884 1581 Parts 7533 | . 16 260 32 231 79 530 250 424 21 5 . 200 72 90 34 150 70 163 8 561 440 . . 649 . 988 . . . . 267 861 309 27 330 399 67 Protomatter Decayed 27933 | . 37 229 12 159 400 572 90 1823 17 196 25 1115 256 307 306 268 546 451 60 243 1807 49 40 1004 . 686 . 219 . . 2218 352 280 3013 4695 6251 207 Game ------ Seed ThrusterPrecisionThrower Manual? 0 Play Time 06:03:56 Cumulative 447.9 hours Start 2022.05.29 @ 10:51:52 End 2022.05.29 @ 17:19:23 Sessions 3 Manual Loads 0 Difficulty Rogue Special Mode Winter2019/RPGLIKE Game No. 422 Rogue 422 Adventurer 0 Explorer 0 Win Type - Total 21 Types 13/2/3/2/0/0/0/1/0 Lore% 93 Gallery% 91 Achievement% 77 Wizard Run 0 Options --------- ASCII 0 Keyboard 0 Movement Arrows Keybinds 0 Fullscreen 1 Font 18/Smallcaps Map View 76x50 Tactical HUD 1 Map Filters NONE Filters NONE Steam 1 RUN: 85ef9978-1b0b-484a-b7ed-0549effe801d